{"text_format":"1","workbook":"xlsx","n_sheets":6,"sheets":["For Office Use Only","Registration","Print Instructions","Student Roster","Event Registrations","Workshop Registrations"],"not_rendered":{"charts":0,"images":3,"macros":1,"external_links":0,"defined_names":11,"comments":0,"pivot_tables":0},"unopened":[],"bounds":{"document_bytes":16777216,"sheet_cells":100000,"rows_first":2000,"rows_last":500,"rows_between":2000,"halvings":0,"cell_chars":16384,"cell_head_chars":4096},"cells_cut":0,"cells_raw":0,"read":"whole","date_system":"1900"}

{"sheet":"For Office Use Only","index":0,"n_rows":88,"n_cols":9,"rows_kept":88,"cut":false,"hidden":true,"merged":[]}
[1,"1000 Alamance Community College",1000,null,"  ",null,null,null,"Select One:"]
[2,"1100 Alamance Community College - Career College",1100,null,1,"AM Arboriculture: Classroom (3hr)",null,null,"S"]
[3,"1200 Auburn University",1200,null,2,"AM Arboriculture: Hands-On (3hr)",null,null,"M"]
[4,"1300 Brigham Young University - Idaho",1300,null,3,"AM Computer Aided Landscape Design (3hr)",null,null,"L"]
[5,"1400 Brigham Young University - Provo",1400,null,4,"AM Hardscape Installation (3hr)",null,null,"XL"]
[6,"1500 Cal Poly - Pomona",1500,null,5,"AM Irrigation 101:  Irrigation Hands-on (3hr)",null,null,"XXL"]
[7,"1600 Cal Poly - San Luis Obispo",1600,null,6,"AM Irrigation 201:  Principles of Design (3hr)",null,null,"XXXL"]
[8,"1700 Carteret Community College",1700,null,7,"AM Landscape Lighting (3hr)"]
[9,"1800 Chattahoochee Technical College",1800,null,8,"AM Truck and Trailer Operation (3hr)"]
[10,"1900 Cincinnati State Tech. & Comm. College",1900,null,9,"AM Woody Ornamental Plant ID (3hr)"]
[11,"2000 Clackamas Community College",2000,null,10,"AM Compact Track/Skid Steer Loader Operation (Session 1)"]
[12,"2100 Clemson University",2100,null,11,"AM Construction Cost Estimating (Session 1)"]
[13,"2200 College of DuPage",2200,null,12,"AM NALPF/KFF Business Track - Customer Mgmt / Busn Development (Session 1)"]
[14,"2300 College of Western Idaho",2300,null,13,"AM Safety First (Session 1)"]
[15,"2400 Colorado State University",2400,null,14,"AM Sales Presentation (Session 1)"]
[16,"2500 Columbus State Community College",2500,null,15,"AM Small Engine Repair (Session 1)"]
[17,"2600 County College of Morrie",2600,null,16,"AM Climate Change & Arboriculture: As Earth Warms, Trees Feel the Heat (Session 2)"]
[18,"2700 Cuyahoga Community College",2700,null,17,"AM Construction Cost Estimating (Session 2)"]
[19,"2800 Cuyamaca College",2800,null,18,"AM Power Management (Session 2)"]
[20,"2900 Eastern Kentucky University",2900,null,19,"AM Pruning (Session 2)"]
[21,"3000 Gateway Technical College",3000,null,20,"AM Sales Presentation (Session 2)"]
[22,"3100 Gwinnett Technical College",3100,null,21,"AM Small Engine Repair (Session 2)"]
[23,"3200 Hawkeye Community College",3200,null,22,"AM Sustainable Fertilization: Building Business and Plant Health (Session 2)"]
[24,"3300 Hinds Community College",3300,null,23,"PM 3D Exterior Landscape Design (3hr)"]
[25,"3400 Houston Community College",3400,null,24,"PM Arboriculture: Hands-On (3hr)"]
[26,"3500 Illinois Central College",3500,null,25,"PM Hardscape Installation (3hr)"]
[27,"3600 Illinois State University",3600,null,26,"PM Irrigation 101:  Irrigation Hands-on (3hr)"]
[28,"3700 Iowa State University",3700,null,27,"PM Landscape Lighting (3hr)"]
[29,"3800 Joliet Junior College",3800,null,28,"PM Plant Problem Diagnosis (3hr)"]
[30,"3900 Kansas State University",3900,null,29,"PM Truck and Trailer Operation (3hr)"]
[31,"4000 Kirkwood Community College",4000,null,30,"PM Woody Ornamental Plant ID (3hr)"]
[32,"4100 Kishwaukee College",4100,null,31,"PM Compact Excavator Operation (Session 3)"]
[33,"4200 Knox County Career Center",4200,null,32,"PM Compact Track/Skid Steer Loader Operation (Session 3)"]
[34,"4300 Lakeshore Technical College",4300,null,33,"PM Maintenance Cost Estimating (Session 3)"]
[35,"4400 Merced College",4400,null,34,"PM Power Management (Session 3)"]
[36,"4500 Michigan State University",4500,null,35,"PM Evolution in Landscaping - The Rise of Robotic Mowing in Turf Care (Session 3)"]
[37,"4600 Milwaukee Area Technical College",4600,null,36,"PM The Design Process: Concept to Outdoor Space (Session 3)"]
[38,"4700 Mississippi State University",4700,null,37,"PM Biophilic Interiors (Session 4)"]
[39,"4800 NCTA/University of Nebraska",4800,null,38,"PM Climate Change & Arboriculture: As Earth Warms, Trees Feel the Heat (Session 4)"]
[40,"4900 Niagara Parks Commission School of Horticulture",4900,null,39,"PM Compact Excavator Operation (Session 4)"]
[41,"5000 North Carolina State University",5000,null,40,"PM Maintenance Cost Estimating (Session 4)"]
[42,"5100 North Dakota State University",5100,null,41,"PM NALPF/KFF Business Track - Leadership & Company Culture (Session 4)"]
[43,"5200 North Georgia Technical College",5200,null,42,"PM Pruning (Session 4) "]
[44,"5300 Ohio Hi-Point Career Center",5300]
[45,"5400 Ohio State ATI",5400]
[46,"5500 Oklahoma State University - Oklahoma City",5500]
[47,"5600 Oklahoma State University - Stillwater",5600]
[48,"5700 Oregon State University",5700]
[49,"5800 Owens Community College",5800]
[50,"5900 Ozarks Tech. Community College",5900]
[51,"6000 Palo Alto College",6000]
[52,"6100 Parkland College",6100]
[53,"6200 Penn State",6200]
[54,"6300 Pennsylvania College of Technology",6300]
[55,"6400 Piedmont Technical College",6400]
[56,"6500 Portland Community College",6500]
[57,"6600 Purdue University",6600]
[58,"6700 Rochester Community & Technical College",6700]
[59,"6800 Sam Houston State University",6800]
[60,"6900 Sandhills Community College",6900]
[61,"7000 Shasta College",7000]
[62,"7100 Southeast Missouri State University",7100]
[63,"7200 Southeast Technical Institute",7200]
[64,"7300 Southern Illinois University - Carbondale",7300]
[65,"7400 Southwestern Illinois College",7400]
[66,"7500 Spokane Community College",7500]
[67,"7600 Stephen F. Austin State University",7600]
[68,"7700 SUNY Cobleskill",7700]
[69,"7800 SUNY Delhi",7800]
[70,"7900 Tarrant County College",7900]
[71,"8000 Texas A&M",8000]
[72,"8100 Tolles Career & Technical Center",8100]
[73,"8200 Tuskegee University",8200]
[74,"8300 University of Florida",8300]
[75,"8400 University of Georgia",8400]
[76,"8500 University of Illinois - Champaign",8500]
[77,"8600 University of Maryland",8600]
[78,"8700 University of Massachusetts - Amherst",8700]
[79,"8800 University of Mount Olive",8800]
[80,"8900 University of Rhode Island",8900]
[81,"9000 University of Wisconsin-Platteville",9000]
[82,"9100 Upper Valley Career Center",9100]
[83,"9200 Virginia Tech",9200]
[84,"9300 Wallace State Community College",9300]
[85,"9400 West Virginia University",9400]
[86,"9500 Wilkes Community College",9500]
[87,"9600 Williamson College of the Trades",9600]
[88,"9900 School Not Listed",9900]

{"sheet":"Registration","index":1,"n_rows":110,"n_cols":39,"rows_kept":110,"cut":false,"hidden":false,"merged":[[3,9,3,10],[0,9,0,10]]}
[]
["2024 National Collegiate Landscape Competition Registration Form"]
[null,null,null,null,null,null,null,null,null,"* If your school does not appear in the list, select 9900 from the list and enter your school name here:"]
["Select Your School: ",3,null,null,null,null,null,null,null,null,null,null,null,null,null,null,null,null,null,"Registration Data: Copy & Paste as Values",null,null,null,null,null,null,null,null,null,"Event Registration Data: Copy & Paste as Values First",null,null,null,null,"Workshop Registrations: Copy & Paste as Values First"]
[1,{"$f":"INDEX('For Office Use Only'!A1:B89,A5,0)","v":"1000 Alamance Community College"}]
[null,{"$f":"VLOOKUP(A5, 'For Office Use Only'!A1:C89, 3, FALSE)","v":1000}]
["Student Roster",null,null,null,null,null,null,null,null,"Event Registration",null,null,null,null,null,"Workshop Registrations"]
[null,null,null,null,null,null,null,null,null,"Events in Blue REQUIRE TWO Students per School"]
[null,null,null,null,"Faculty","T-Shirt","Graduation","Opt-In Free",null,null,null,null,null,null,null,null,null,null,null,null,null,null,null,null,null,null,null,"DO NOT COPY",null,"DO NOT COPY",null,null,null,null,"DO NOT COPY","DO NOT COPY"]
["Student No.","First Name","Last Name","Email Address","Indicator (X)","Size","Date","NALP Membership",null,"Event Description","Participating Student",null,null,null,null,"Select Workshop:","Select Student:",null,null,"StudentID","UnivID","FirstName","LastName","Fac Ind","Email Address","TShirtSize","OptIn","Name for Lookup",null,"Student","StudentID","EventID","UniversityID",null,"Workshop","Student","StudentID","WorkshopID","UniversityID"]
[null,"First Name Here","Last Name Here","jstudent@school.edu","X",null,null,"X",1,"3D Exterior Landscape Design",null,null,null,null,null,null,null,null,null,null,null,null,null,null,null,null,null,null,null,null,{"$f":"AD11+AG11","v":1000},1,{"$f":"$B$6","v":1000},null,null,null,{"$f":"$B$6+AJ11","v":1000},{"$f":"AI11","v":0},{"$f":"$B$6","v":1000}]
[{"$f":"B6+1","v":1001},null,null,null,null,1,null,null,null,null,null,null,null,null,null,null,null,null,null,{"$f":"A12","v":1001},{"$f":"$B$6","v":1000},{"$f":"B12","v":0},{"$f":"C12","v":0},{"$f":"IF(E12=\"X\",1,0)","v":0},{"$f":"D12","v":0},{"$f":"IF(F12=2,\"S\",IF(F12=3,\"M\",IF(F12=4,\"L\",IF(F12=5,\"XL\",IF(F12=6,\"XXL\",IF(F12=7,\"XXXL\"))))))","v":false},{"$f":"IF(H12=\"x\",1,0)","v":0},{"$f":"A12&\" \"&B12&\" \"&C12","v":"1001  "},null,null,null,null,null,null,null,null,{"$f":"$B$6+AJ12","v":1000},{"$f":"AI12","v":0},{"$f":"$B$6","v":1000}]
[{"$f":"B6+2","v":1002},null,null,null,null,1,null,null,2,"Annual & Perennial Identification",null,null,null,null,null,null,null,null,null,{"$f":"A13","v":1002},{"$f":"$B$6","v":1000},{"$f":"B13","v":0},{"$f":"C13","v":0},{"$f":"IF(E13=\"X\",1,0)","v":0},{"$f":"D13","v":0},{"$f":"IF(F13=2,\"S\",IF(F13=3,\"M\",IF(F13=4,\"L\",IF(F13=5,\"XL\",IF(F13=6,\"XXL\",IF(F13=7,\"XXXL\"))))))","v":false},{"$f":"IF(H13=\"x\",1,0)","v":0},{"$f":"A13&\" \"&B13&\" \"&C13","v":"1002  "},null,null,{"$f":"AD13+AG13","v":1000},2,{"$f":"$B$6","v":1000},null,null,null,1000,0,1000]
[{"$f":"B6+3","v":1003},null,null,null,null,1,null,null,2,"Annual & Perennial Identification",null,null,null,null,null,null,null,null,null,1003,1000,0,0,0,0,false,0,"1003  ",null,null,1000,2,1000,null,null,null,1000,0,1000]
[{"$f":"B6+4","v":1004},null,null,null,null,1,null,null,null,null,null,null,null,null,null,null,null,null,null,1004,1000,0,0,0,0,false,0,"1004  ",null,null,null,null,null,null,null,null,1000,0,1000]
[{"$f":"B6+5","v":1005},null,null,null,null,1,null,null,3,"Arboriculture Techniques",null,null,null,null,null,null,null,null,null,1005,1000,{"$f":"B16","v":0},0,0,{"$f":"D16","v":0},false,0,{"$f":"A16&\" \"&B16&\" \"&C16","v":"1005  "},null,null,1000,3,1000,null,null,null,1000,0,1000]
[{"$f":"B6+6","v":1006},null,null,null,null,1,null,null,3,"Arboriculture Techniques",null,null,null,null,null,null,null,null,null,1006,1000,0,0,0,0,false,0,"1006  ",null,null,1000,3,1000,null,null,null,1000,0,1000]
[{"$f":"B6+7","v":1007},null,null,null,null,1,null,null,null,null,null,null,null,null,null,null,null,null,null,1007,1000,0,0,0,0,false,0,"1007  ",null,null,null,null,null,null,null,null,1000,0,1000]
[{"$f":"B6+8","v":1008},null,null,null,null,1,null,null,4,"Business Management",null,null,null,null,null,null,null,null,null,1008,1000,0,0,0,0,false,0,"1008  ",null,null,1000,4,1000,null,null,null,1000,0,1000]
[{"$f":"B6+9","v":1009},null,null,null,null,1,null,null,4,"Business Management",null,null,null,null,null,null,null,null,null,1009,1000,0,0,0,0,false,0,"1009  ",null,null,1000,4,1000,null,null,null,1000,0,1000]
[{"$f":"B6+10","v":1010},null,null,null,null,1,null,null,null,null,null,null,null,null,null,null,null,null,null,1010,1000,0,0,0,0,false,0,"1010  ",null,null,null,null,null,null,null,null,1000,0,1000]
[{"$f":"B6+11","v":1011},null,null,null,null,1,null,null,5,"Compact Excavator Operation",null,null,null,null,null,null,null,null,null,1011,1000,0,0,0,0,false,0,"1011  ",null,null,1000,5,1000,null,null,null,1000,0,1000]
[{"$f":"B6+12","v":1012},null,null,null,null,1,null,null,null,null,null,null,null,null,null,null,null,null,null,1012,1000,0,0,0,0,false,0,"1012  ",null,null,null,null,null,null,null,null,1000,0,1000]
[{"$f":"B6+13","v":1013},null,null,null,null,1,null,null,6,"Compact Track/Skid Steer Loader Operation",null,null,null,null,null,null,null,null,null,1013,1000,0,0,0,0,false,0,"1013  ",null,null,1000,6,1000,null,null,null,1000,0,1000]
[{"$f":"B6+14","v":1014},null,null,null,null,1,null,null,null,null,null,null,null,null,null,null,null,null,null,1014,1000,0,0,0,0,false,0,"1014  ",null,null,null,null,null,null,null,null,1000,0,1000]
[{"$f":"B6+15","v":1015},null,null,null,null,1,null,null,7,"Computer Aided Landscape Design  ",null,null,null,null,null,null,null,null,null,1015,1000,0,0,0,0,false,0,"1015  ",null,null,1000,7,1000,null,null,null,1000,0,1000]
[{"$f":"B6+16","v":1016},null,null,null,null,1,null,null,null,null,null,null,null,null,null,null,null,null,null,1016,1000,0,0,0,0,false,0,"1016  ",null,null,null,null,null,null,null,null,1000,0,1000]
[{"$f":"B6+17","v":1017},null,null,null,null,1,null,null,8,"Construction Cost Estimating ",null,null,null,null,null,null,null,null,null,1017,1000,0,0,0,0,false,0,"1017  ",null,null,1000,8,1000,null,null,null,1000,0,1000]
[{"$f":"B6+18","v":1018},null,null,null,null,1,null,null,8,"Construction Cost Estimating ",null,null,null,null,null,null,null,null,null,1018,1000,0,0,0,0,false,0,"1018  ",null,null,1000,8,1000,null,null,null,1000,0,1000]
[{"$f":"B6+19","v":1019},null,null,null,null,1,null,null,null,null,null,null,null,null,null,null,null,null,null,1019,1000,0,0,0,0,false,0,"1019  ",null,null,null,null,null,null,null,null,1000,0,1000]
[{"$f":"B6+20","v":1020},null,null,null,null,1,null,null,9,"Employee Development",null,null,null,null,null,null,null,null,null,1020,1000,0,0,0,0,false,0,"1020  ",null,null,1000,9,1000,null,null,null,1000,0,1000]
[{"$f":"B6+21","v":1021},null,null,null,null,1,null,null,9,"Employee Development ",null,null,null,null,null,null,null,null,null,1021,1000,0,0,0,0,false,0,"1021  ",null,null,1000,9,1000,null,null,null,1000,0,1000]
[{"$f":"B6+22","v":1022},null,null,null,null,1,null,null,null,null,null,null,null,null,null,null,null,null,null,1022,1000,0,0,0,0,false,0,"1022  ",null,null,null,null,null,null,null,null,1000,0,1000]
[{"$f":"B6+23","v":1023},null,null,null,null,1,null,null,10,"Exterior Landscape Design",null,null,null,null,null,null,null,null,null,1023,1000,0,0,0,0,false,0,"1023  ",null,null,1000,10,1000,null,null,null,1000,0,1000]
[{"$f":"B6+24","v":1024},null,null,null,null,1,null,null,null,null,null,null,null,null,null,null,null,null,null,1024,1000,0,0,0,0,false,0,"1024  ",null,null,null,null,null,null,null,null,1000,0,1000]
[{"$f":"B6+25","v":1025},null,null,null,null,1,null,null,11,"Hardscape Installation",null,null,null,null,null,null,null,null,null,1025,1000,0,0,0,0,false,0,"1025  ",null,null,1000,11,1000,null,null,null,1000,0,1000]
[{"$f":"B6+26","v":1026},null,null,null,null,1,null,null,11,"Hardscape Installation",null,null,null,null,null,null,null,null,null,1026,1000,0,0,0,0,false,0,"1026  ",null,null,1000,11,1000,null,null,null,1000,0,1000]
[{"$f":"B6+27","v":1027},null,null,null,null,1,null,null,null,null,null,null,null,null,null,null,null,null,null,1027,1000,0,0,0,0,false,0,"1027  ",null,null,null,null,null,null,null,null,1000,0,1000]
[{"$f":"B6+28","v":1028},null,null,null,null,1,null,null,12,"Interior Landscape Design",null,null,null,null,null,null,null,null,null,1028,1000,0,0,0,0,false,0,"1028  ",null,null,1000,12,1000,null,null,null,1000,0,1000]
[{"$f":"B6+29","v":1029},null,null,null,null,1,null,null,null,null,null,null,null,null,null,null,null,null,null,1029,1000,0,0,0,0,false,0,"1029  ",null,null,null,null,null,null,null,null,1000,0,1000]
[{"$f":"B6+30","v":1030},null,null,null,null,1,null,null,13,"Interior Plant Identification",null,null,null,null,null,null,null,null,null,1030,1000,0,0,0,0,false,0,"1030  ",null,null,{"$f":"AD41+AG41","v":1000},13,1000,null,null,null,1000,0,1000]
[{"$f":"B6+31","v":1031},null,null,null,null,1,null,null,13,"Interior Plant Identification",null,null,null,null,null,null,null,null,null,1031,1000,0,0,0,0,false,0,"1031  ",null,null,1000,13,1000,null,null,null,1000,0,1000]
[{"$f":"B6+32","v":1032},null,null,null,null,1,null,null,null,null,null,null,null,null,null,null,null,null,null,1032,1000,0,0,0,0,false,0,"1032  ",null,null,null,null,null,null,null,null,1000,0,1000]
[{"$f":"B6+33","v":1033},null,null,null,null,1,null,null,14,"Irrigation Assembly",null,null,null,null,null,null,null,null,null,1033,1000,0,0,0,0,false,0,"1033  ",null,null,1000,14,1000,null,null,null,1000,0,1000]
[{"$f":"B6+34","v":1034},null,null,null,null,1,null,null,14,"Irrigation Assembly",null,null,null,null,null,null,null,null,null,1034,1000,0,0,0,0,false,0,"1034  ",null,null,1000,14,1000,null,null,null,1000,0,1000]
[{"$f":"B6+35","v":1035},null,null,null,null,1,null,null,null,null,null,null,null,null,null,null,null,null,null,1035,1000,0,0,0,0,false,0,"1035  ",null,null,null,null,null,null,null,null,1000,0,1000]
[{"$f":"B6+36","v":1036},null,null,null,null,1,null,null,15,"Irrigation Design",null,null,null,null,null,null,null,null,null,1036,1000,0,0,0,0,false,0,"1036  ",null,null,1000,15,1000,null,null,null,1000,0,1000]
[{"$f":"B6+37","v":1037},null,null,null,null,1,null,null,null,null,null,null,null,null,null,null,null,null,null,1037,1000,0,0,0,0,false,0,"1037  ",null,null,null,null,null,null,null,null,1000,0,1000]
[{"$f":"B6+38","v":1038},null,null,null,null,1,null,null,16,"Irrigation Troubleshooting",null,null,null,null,null,null,null,null,null,1038,1000,0,0,0,0,false,0,"1038  ",null,null,{"$f":"AD49+AG49","v":1000},16,1000,null,null,null,1000,0,1000]
[{"$f":"B6+39","v":1039},null,null,null,null,1,null,null,16,"Irrigation Troubleshooting",null,null,null,null,null,null,null,null,null,1039,1000,0,0,0,0,false,0,"1039  ",null,null,1000,16,1000,null,null,null,1000,0,1000]
[{"$f":"B6+40","v":1040},null,null,null,null,1,null,null,null,null,null,null,null,null,null,null,null,null,null,1040,1000,0,0,0,0,false,0,"1040  ",null,null,null,null,null,null,null,null,1000,0,1000]
[{"$f":"B6+41","v":1041},null,null,null,null,1,null,null,17,"Landscape Lighting",null,null,null,null,null,null,null,null,null,1041,1000,0,0,0,0,false,0,"1041  ",null,null,1000,17,1000,null,null,null,1000,0,1000]
[{"$f":"B6+42","v":1042},null,null,null,null,1,null,null,null,null,null,null,null,null,null,null,null,null,null,1042,1000,0,0,0,0,false,0,"1042  ",null,null,null,null,null,null,null,null,1000,0,1000]
[{"$f":"B6+43","v":1043},null,null,null,null,1,null,null,18,"Landscape Maintenance Operations",null,null,null,null,null,null,null,null,null,1043,1000,0,0,0,0,false,0,"1043  ",null,null,{"$f":"AD54+AG54","v":1000},18,1000,null,null,null,1000,0,1000]
[{"$f":"B6+44","v":1044},null,null,null,null,1,null,null,18,"Landscape Maintenance Operations",null,null,null,null,null,null,null,null,null,1044,1000,0,0,0,0,false,0,"1044  ",null,null,1000,18,1000,null,null,null,1000,0,1000]
[{"$f":"B6+45","v":1045},null,null,null,null,1,null,null,null,null,null,null,null,null,null,null,null,null,null,1045,1000,0,0,0,0,false,0,"1045  ",null,null,null,null,null,null,null,null,1000,0,1000]
[{"$f":"B6+46","v":1046},null,null,null,null,1,null,null,19,"Landscape Plant Installation",null,null,null,null,null,null,null,null,null,1046,1000,0,0,0,0,false,0,"1046  ",null,null,1000,19,1000,null,null,null,1000,0,1000]
[{"$f":"B6+47","v":1047},null,null,null,null,1,null,null,19,"Landscape Plant Installation",null,null,null,null,null,null,null,null,null,1047,1000,0,0,0,0,false,0,"1047  ",null,null,1000,19,1000,null,null,null,1000,0,1000]
[{"$f":"B6+48","v":1048},null,null,null,null,1,null,null,19,"Landscape Plant Installation",null,null,null,null,null,null,null,null,null,1048,1000,0,0,0,0,false,0,"1048  ",null,null,{"$f":"AD59+AG59","v":1000},19,1000,null,null,null,1000,0,1000]
[{"$f":"B6+49","v":1049},null,null,null,null,1,null,null,null,null,null,null,null,null,null,null,null,null,null,1049,1000,0,0,0,0,false,0,"1049  ",null,null,null,null,null,null,null,null,1000,0,1000]
[{"$f":"B6+50","v":1050},null,null,null,null,1,null,null,20,"Maintenance Cost Estimating",null,null,null,null,null,null,null,null,null,1050,1000,0,0,0,0,false,0,"1050  ",null,null,1000,20,1000,null,null,null,1000,0,1000]
[{"$f":"B6+51","v":1051},null,null,null,null,1,null,null,20,"Maintenance Cost Estimating",null,null,null,null,null,null,null,null,null,1051,1000,0,0,0,0,false,0,"1051  ",null,null,1000,20,1000,null,null,null,1000,0,1000]
[{"$f":"B6+52","v":1052},null,null,null,null,1,null,null,null,null,null,null,null,null,null,null,null,null,null,1052,1000,0,0,0,0,false,0,"1052  ",null,null,null,null,null,null,null,null,1000,0,1000]
[{"$f":"B6+53","v":1053},null,null,null,null,1,null,null,21,"Mini Track Loader Operation",null,null,null,null,null,null,null,null,null,1053,1000,0,0,0,0,false,0,"1053  ",null,null,1000,21,1000,null,null,null,1000,0,1000]
[{"$f":"B6+54","v":1054},null,null,null,null,1,null,null,null,null,null,null,null,null,null,null,null,null,null,1054,1000,0,0,0,0,false,0,"1054  ",null,null,null,null,null,null,null,null,1000,0,1000]
[{"$f":"B6+55","v":1055},null,null,null,null,1,null,null,22,"Plant Problem Diagnosis",null,null,null,null,null,null,null,null,null,1055,1000,0,0,0,0,false,0,"1055  ",null,null,{"$f":"AD66+AG66","v":1000},22,1000,null,null,null,1000,0,1000]
[{"$f":"B6+56","v":1056},null,null,null,null,1,null,null,22,"Plant Problem Diagnosis",null,null,null,null,null,null,null,null,null,1056,1000,0,0,0,0,false,0,"1056  ",null,null,1000,22,1000,null,null,null,1000,0,1000]
[{"$f":"B6+57","v":1057},null,null,null,null,1,null,null,null,null,null,null,null,null,null,null,null,null,null,1057,1000,0,0,0,0,false,0,"1057  ",null,null,null,null,null,null,null,null,1000,0,1000]
[{"$f":"B6+58","v":1058},null,null,null,null,1,null,null,23,"Safety First",null,null,null,null,null,null,null,null,null,1058,1000,0,0,0,0,false,0,"1058  ",null,null,1000,23,1000,null,null,null,1000,0,1000]
[{"$f":"B6+59","v":1059},null,null,null,null,1,null,null,23,"Safety First",null,null,null,null,null,null,null,null,null,1059,1000,0,0,0,0,false,0,"1059  ",null,null,1000,23,1000,null,null,null,1000,0,1000]
[{"$f":"B6+60","v":1060},null,null,null,null,1,null,null,null,null,null,null,null,null,null,null,null,null,null,1060,1000,0,0,0,0,false,0,"1060  ",null,null,null,null,null,null,null,null,1000,0,1000]
[{"$f":"B6+61","v":1061},null,null,null,null,1,null,null,24,"Sales Presentation",null,null,null,null,null,null,null,null,null,1061,1000,0,0,0,0,false,0,"1061  ",null,null,1000,24,1000,null,null,null,1000,0,1000]
[{"$f":"B6+62","v":1062},null,null,null,null,1,null,null,null,null,null,null,null,null,null,null,null,null,null,1062,1000,0,0,0,0,false,0,"1062  ",null,null,null,null,null,null,null,null,1000,0,1000]
[{"$f":"B6+63","v":1063},null,null,null,null,1,null,null,25,"Small Engine Repair",null,null,null,null,null,null,null,null,null,1063,1000,0,0,0,0,false,0,"1063  ",null,null,{"$f":"AD74+AG74","v":1000},25,1000,null,null,null,1000,0,1000]
[{"$f":"B6+64","v":1064},null,null,null,null,1,null,null,null,null,null,null,null,null,null,null,null,null,null,1064,1000,0,0,0,0,false,0,"1064  ",null,null,null,null,null,null,null,null,1000,0,1000]
[{"$f":"B6+65","v":1065},null,null,null,null,1,null,null,26,"Robotics & Technology in Landscape Design/Maintenance",null,null,null,null,null,null,null,null,null,1065,1000,0,0,0,0,false,0,"1065  ",null,null,{"$f":"AD76+AG76","v":1000},26,1000,null,null,null,{"$f":"$B$6+AJ76","v":1000},{"$f":"AI76","v":0},{"$f":"$B$6","v":1000}]
[{"$f":"B6+66","v":1066},null,null,null,null,1,null,null,26,"Robotics & Technology in Landscape Design/Maintenance",null,null,null,null,null,null,null,null,null,{"$f":"A77","v":1066},{"$f":"$B$6","v":1000},{"$f":"B77","v":0},{"$f":"C77","v":0},{"$f":"IF(E77=\"X\",1,0)","v":0},{"$f":"D77","v":0},{"$f":"IF(F77=2,\"S\",IF(F77=3,\"M\",IF(F77=4,\"L\",IF(F77=5,\"XL\",IF(F77=6,\"XXL\",IF(F77=7,\"XXXL\"))))))","v":false},{"$f":"IF(H77=\"x\",1,0)","v":0},{"$f":"A77&\" \"&B77&\" \"&C77","v":"1066  "},null,null,{"$f":"AD77+AG77","v":1000},26,1000,null,null,null,1000,0,1000]
[{"$f":"B6+67","v":1067},null,null,null,null,1,null,null,null,null,null,null,null,null,null,null,null,null,null,1067,1000,0,0,0,0,false,0,"1067  ",null,null,null,null,null,null,null,null,1000,0,1000]
[{"$f":"B6+68","v":1068},null,null,null,null,1,null,null,27,"Tractor Loader Backhoe Operation",null,null,null,null,null,null,null,null,null,1068,1000,0,0,0,0,false,0,"1068  ",null,null,{"$f":"AD79+AG79","v":1000},27,{"$f":"$B$6","v":1000},null,null,null,1000,0,1000]
[{"$f":"B6+69","v":1069},null,null,null,null,1,null,null,null,null,null,null,null,null,null,null,null,null,null,1069,1000,0,0,0,0,false,0,"1069  ",null,null,null,null,null,null,null,null,1000,0,1000]
[{"$f":"B6+70","v":1070},null,null,null,null,1,null,null,28,"Truck & Trailer Operation",null,null,null,null,null,null,null,null,null,1070,1000,0,0,0,0,false,0,"1070  ",null,null,{"$f":"AD81+AG81","v":1000},28,{"$f":"$B$6","v":1000},null,null,null,1000,0,1000]
[{"$f":"B6+71","v":1071},null,null,null,null,1,null,null,28,"Truck & Trailer Operation",null,null,null,null,null,null,null,null,null,1071,1000,0,0,0,0,false,0,"1071  ",null,null,1000,28,{"$f":"$B$6","v":1000},null,null,null,1000,0,1000]
[{"$f":"B6+72","v":1072},null,null,null,null,1,null,null,null,null,null,null,null,null,null,null,null,null,null,1072,1000,0,0,0,0,false,0,"1072  ",null,null,null,null,null,null,null,null,1000,0,1000]
[{"$f":"B6+73","v":1073},null,null,null,null,1,null,null,29,"Turf & Weed Identification",null,null,null,null,null,null,null,null,null,1073,1000,0,0,0,0,false,0,"1073  ",null,null,1000,29,{"$f":"$B$6","v":1000},null,null,null,1000,0,1000]
[{"$f":"B6+74","v":1074},null,null,null,null,1,null,null,29,"Turf & Weed Identification",null,null,null,null,null,null,null,null,null,1074,1000,0,0,0,0,false,0,"1074  ",null,null,1000,29,{"$f":"$B$6","v":1000},null,null,null,1000,0,1000]
[{"$f":"B6+75","v":1075},null,null,null,null,1,null,null,null,null,null,null,null,null,null,null,null,null,null,1075,1000,0,0,0,0,false,0,"1075  ",null,null,null,null,null,null,null,null,1000,0,1000]
[{"$f":"B6+76","v":1076},null,null,null,null,1,null,null,30,"Woody Ornamental Plant Identification",null,null,null,null,null,null,null,null,null,1076,1000,0,0,0,0,false,0,"1076  ",null,null,1000,30,{"$f":"$B$6","v":1000},null,null,null,1000,0,1000]
[{"$f":"B6+77","v":1077},null,null,null,null,1,null,null,30,"Woody Ornamental Plant Identification",null,null,null,null,null,null,null,null,null,1077,1000,0,0,0,0,false,0,"1077  ",null,null,1000,30,{"$f":"$B$6","v":1000},null,null,null,1000,0,1000]
[{"$f":"B6+78","v":1078},null,null,null,null,1,null,null,null,null,null,null,null,null,null,null,null,null,null,1078,1000,0,0,0,0,false,0,"1078  ",null,null,null,null,null,null,null,null,1000,0,1000]
[{"$f":"B6+79","v":1079},null,null,null,null,1,null,null,null,null,null,null,null,null,null,null,null,null,null,1079,1000,0,0,0,0,false,0,"1079  ",null,null,null,null,null,null,null,null,1000,0,1000]
[{"$f":"B6+80","v":1080},null,null,null,null,1,null,null,null,null,null,null,null,null,null,null,null,null,null,1080,1000,0,0,0,0,false,0,"1080  ",null,null,null,null,null,null,null,null,1000,0,1000]
[{"$f":"B6+81","v":1081},null,null,null,null,1,null,null,null,null,null,null,null,null,null,null,null,null,null,1081,1000,0,0,0,0,false,0,"1081  ",null,null,null,null,null,null,null,null,1000,0,1000]
[{"$f":"B6+82","v":1082},null,null,null,null,1,null,null,null,null,null,null,null,null,null,null,null,null,null,1082,1000,0,0,0,0,false,0,"1082  ",null,null,null,null,null,null,null,null,1000,0,1000]
[{"$f":"B6+83","v":1083},null,null,null,null,1,null,null,null,null,null,null,null,null,null,null,null,null,null,1083,1000,0,0,0,0,false,0,"1083  ",null,null,null,null,null,null,null,null,1000,0,1000]
[{"$f":"B6+84","v":1084},null,null,null,null,1,null,null,null,null,null,null,null,null,null,null,null,null,null,1084,1000,0,0,0,0,false,0,"1084  ",null,null,null,null,null,null,null,null,1000,0,1000]
[{"$f":"B6+85","v":1085},null,null,null,null,1,null,null,null,null,null,null,null,null,null,null,null,null,null,1085,1000,0,0,0,0,false,0,"1085  ",null,null,null,null,null,null,null,null,1000,0,1000]
[{"$f":"B6+86","v":1086},null,null,null,null,1,null,null,null,null,null,null,null,null,null,null,null,null,null,1086,1000,0,0,0,0,false,0,"1086  ",null,null,null,null,null,null,null,null,1000,0,1000]
[{"$f":"B6+87","v":1087},null,null,null,null,1,null,null,null,null,null,null,null,null,null,null,null,null,null,1087,1000,0,0,0,0,false,0,"1087  ",null,null,null,null,null,null,null,null,1000,0,1000]
[{"$f":"B6+88","v":1088},null,null,null,null,1,null,null,null,null,null,null,null,null,null,null,null,null,null,1088,1000,0,0,0,0,false,0,"1088  ",null,null,null,null,null,null,null,null,1000,0,1000]
[{"$f":"B6+89","v":1089},null,null,null,null,1,null,null,null,null,null,null,null,null,null,null,null,null,null,1089,1000,0,0,0,0,false,0,"1089  ",null,null,null,null,null,null,null,null,1000,0,1000]
[{"$f":"B6+90","v":1090},null,null,null,null,1,null,null,null,null,null,null,null,null,null,null,null,null,null,1090,1000,0,0,0,0,false,0,"1090  ",null,null,null,null,null,null,null,null,1000,0,1000]
[{"$f":"B6+91","v":1091},null,null,null,null,1,null,null,null,null,null,null,null,null,null,null,null,null,null,1091,1000,0,0,0,0,false,0,"1091  ",null,null,null,null,null,null,null,null,1000,0,1000]
[{"$f":"B6+92","v":1092},null,null,null,null,1,null,null,null,null,null,null,null,null,null,null,null,null,null,1092,1000,0,0,0,0,false,0,"1092  ",null,null,null,null,null,null,null,null,1000,0,1000]
[{"$f":"B6+93","v":1093},null,null,null,null,1,null,null,null,null,null,null,null,null,null,null,null,null,null,1093,1000,0,0,0,0,false,0,"1093  ",null,null,null,null,null,null,null,null,1000,0,1000]
[{"$f":"B6+94","v":1094},null,null,null,null,1,null,null,null,null,null,null,null,null,null,null,null,null,null,1094,1000,0,0,0,0,false,0,"1094  ",null,null,null,null,null,null,null,null,1000,0,1000]
[{"$f":"B6+95","v":1095},null,null,null,null,1,null,null,null,null,null,null,null,null,null,null,null,null,null,1095,1000,0,0,0,0,false,0,"1095  ",null,null,null,null,null,null,null,null,1000,0,1000]
[{"$f":"B6+96","v":1096},null,null,null,null,1,null,null,null,null,null,null,null,null,null,null,null,null,null,1096,1000,0,0,0,0,false,0,"1096  ",null,null,null,null,null,null,null,null,1000,0,1000]
[{"$f":"B6+97","v":1097},null,null,null,null," ",null,null,null,null,null,null,null,null,null,null,null,null,null,1097,1000,0,0,0,0,false,0,"1097  ",null,null,null,null,null,null,null,null,1000,0,1000]
[{"$f":"B6+98","v":1098},null,null,null,null,1,null,null,null,null,null,null,null,null,null,null,null,null,null,1098,1000,0,0,0,0,false,0,"1098  ",null,null,null,null,null,null,null,null,1000,0,1000]
[{"$f":"B6+99","v":1099},null,null,null,null,1,null,null,null,null,null,null,null,null,null,null,null,null,null,1099,1000,0,0,0,0,false,0,"1099  ",null,null,null,null,null,null,null,null,1000,0,1000]

{"sheet":"Print Instructions","index":2,"n_rows":49,"n_cols":1,"rows_kept":49,"cut":false,"hidden":true,"merged":[]}
["1. Select desired section from the Name Range option box."]
[]
[]
[]
[]
[]
[]
[]
[]
[]
[]
[]
[]
[]
[]
[]
[]
[]
[]
[]
["2.  Select File/Print and make sure the settings are as follows:"]
[]
[]
[]
[]
[]
[]
[]
[]
[]
[]
[]
[]
[]
[]
[]
[]
[]
[]
[]
[]
[]
[]
[]
[]
[]
[]
[]
["3.  Print!"]

{"sheet":"Student Roster","index":3,"n_rows":104,"n_cols":5,"rows_kept":104,"cut":false,"hidden":true,"merged":[]}
[]
["2018 National Collegiate Landscape Competition Student Roster"]
[{"$f":"Registration!B5","v":"1000 Alamance Community College"}]
[]
["ID","Name","Fac Ind","T Shirt","Email Address"]
[{"$f":"Registration!A12","v":1001},{"$f":"Registration!B12&\" \"&Registration!C12","v":" "},{"$f":"IF(Registration!E12=\"X\",\"Faculty\",\"\")","v":""},{"$f":"IF(Registration!#REF!=2,\"S\",IF(Registration!#REF!=3,\"M\",IF(Registration!#REF!=4,\"L\",IF(Registration!#REF!=5,\"XL\",IF(Registration!#REF!=6,\"XXL\",IF(Registration!#REF!=7,\"XXXL\",\"\"))))))","v":{"$error":"#REF!"}},{"$f":"IF(Registration!D11=\"\",\"\",Registration!D11)","v":"jstudent@school.edu"}]
[{"$f":"Registration!A13","v":1002},{"$f":"Registration!B13&\" \"&Registration!C13","v":" "},{"$f":"IF(Registration!E13=\"X\",\"Faculty\",\"\")","v":""},{"$f":"IF(Registration!#REF!=2,\"S\",IF(Registration!#REF!=3,\"M\",IF(Registration!#REF!=4,\"L\",IF(Registration!#REF!=5,\"XL\",IF(Registration!#REF!=6,\"XXL\",IF(Registration!#REF!=7,\"XXXL\",\"\"))))))","v":{"$error":"#REF!"}},{"$f":"IF(Registration!D13=\"\",\"\",Registration!D13)","v":""}]
[{"$f":"Registration!A14","v":1003},{"$f":"Registration!B14&\" \"&Registration!C14","v":" "},{"$f":"IF(Registration!E14=\"X\",\"Faculty\",\"\")","v":""},{"$f":"IF(Registration!#REF!=2,\"S\",IF(Registration!#REF!=3,\"M\",IF(Registration!#REF!=4,\"L\",IF(Registration!#REF!=5,\"XL\",IF(Registration!#REF!=6,\"XXL\",IF(Registration!#REF!=7,\"XXXL\",\"\"))))))","v":{"$error":"#REF!"}},{"$f":"IF(Registration!D14=\"\",\"\",Registration!D14)","v":""}]
[{"$f":"Registration!A15","v":1004},{"$f":"Registration!B15&\" \"&Registration!C15","v":" "},{"$f":"IF(Registration!E15=\"X\",\"Faculty\",\"\")","v":""},{"$f":"IF(Registration!#REF!=2,\"S\",IF(Registration!#REF!=3,\"M\",IF(Registration!#REF!=4,\"L\",IF(Registration!#REF!=5,\"XL\",IF(Registration!#REF!=6,\"XXL\",IF(Registration!#REF!=7,\"XXXL\",\"\"))))))","v":{"$error":"#REF!"}},{"$f":"IF(Registration!D15=\"\",\"\",Registration!D15)","v":""}]
[{"$f":"Registration!A16","v":1005},{"$f":"Registration!B16&\" \"&Registration!C16","v":" "},{"$f":"IF(Registration!E16=\"X\",\"Faculty\",\"\")","v":""},{"$f":"IF(Registration!#REF!=2,\"S\",IF(Registration!#REF!=3,\"M\",IF(Registration!#REF!=4,\"L\",IF(Registration!#REF!=5,\"XL\",IF(Registration!#REF!=6,\"XXL\",IF(Registration!#REF!=7,\"XXXL\",\"\"))))))","v":{"$error":"#REF!"}},{"$f":"IF(Registration!D16=\"\",\"\",Registration!D16)","v":""}]
[{"$f":"Registration!A17","v":1006},{"$f":"Registration!B17&\" \"&Registration!C17","v":" "},{"$f":"IF(Registration!E17=\"X\",\"Faculty\",\"\")","v":""},{"$f":"IF(Registration!#REF!=2,\"S\",IF(Registration!#REF!=3,\"M\",IF(Registration!#REF!=4,\"L\",IF(Registration!#REF!=5,\"XL\",IF(Registration!#REF!=6,\"XXL\",IF(Registration!#REF!=7,\"XXXL\",\"\"))))))","v":{"$error":"#REF!"}},{"$f":"IF(Registration!D17=\"\",\"\",Registration!D17)","v":""}]
[{"$f":"Registration!A18","v":1007},{"$f":"Registration!B18&\" \"&Registration!C18","v":" "},{"$f":"IF(Registration!E18=\"X\",\"Faculty\",\"\")","v":""},{"$f":"IF(Registration!#REF!=2,\"S\",IF(Registration!#REF!=3,\"M\",IF(Registration!#REF!=4,\"L\",IF(Registration!#REF!=5,\"XL\",IF(Registration!#REF!=6,\"XXL\",IF(Registration!#REF!=7,\"XXXL\",\"\"))))))","v":{"$error":"#REF!"}},{"$f":"IF(Registration!D18=\"\",\"\",Registration!D18)","v":""}]
[{"$f":"Registration!A19","v":1008},{"$f":"Registration!B19&\" \"&Registration!C19","v":" "},{"$f":"IF(Registration!E19=\"X\",\"Faculty\",\"\")","v":""},{"$f":"IF(Registration!#REF!=2,\"S\",IF(Registration!#REF!=3,\"M\",IF(Registration!#REF!=4,\"L\",IF(Registration!#REF!=5,\"XL\",IF(Registration!#REF!=6,\"XXL\",IF(Registration!#REF!=7,\"XXXL\",\"\"))))))","v":{"$error":"#REF!"}},{"$f":"IF(Registration!D19=\"\",\"\",Registration!D19)","v":""}]
[{"$f":"Registration!A20","v":1009},{"$f":"Registration!B20&\" \"&Registration!C20","v":" "},{"$f":"IF(Registration!E20=\"X\",\"Faculty\",\"\")","v":""},{"$f":"IF(Registration!#REF!=2,\"S\",IF(Registration!#REF!=3,\"M\",IF(Registration!#REF!=4,\"L\",IF(Registration!#REF!=5,\"XL\",IF(Registration!#REF!=6,\"XXL\",IF(Registration!#REF!=7,\"XXXL\",\"\"))))))","v":{"$error":"#REF!"}},{"$f":"IF(Registration!D20=\"\",\"\",Registration!D20)","v":""}]
[{"$f":"Registration!A21","v":1010},{"$f":"Registration!B21&\" \"&Registration!C21","v":" "},{"$f":"IF(Registration!E21=\"X\",\"Faculty\",\"\")","v":""},{"$f":"IF(Registration!#REF!=2,\"S\",IF(Registration!#REF!=3,\"M\",IF(Registration!#REF!=4,\"L\",IF(Registration!#REF!=5,\"XL\",IF(Registration!#REF!=6,\"XXL\",IF(Registration!#REF!=7,\"XXXL\",\"\"))))))","v":{"$error":"#REF!"}},{"$f":"IF(Registration!D21=\"\",\"\",Registration!D21)","v":""}]
[{"$f":"Registration!A22","v":1011},{"$f":"Registration!B22&\" \"&Registration!C22","v":" "},{"$f":"IF(Registration!E22=\"X\",\"Faculty\",\"\")","v":""},{"$f":"IF(Registration!#REF!=2,\"S\",IF(Registration!#REF!=3,\"M\",IF(Registration!#REF!=4,\"L\",IF(Registration!#REF!=5,\"XL\",IF(Registration!#REF!=6,\"XXL\",IF(Registration!#REF!=7,\"XXXL\",\"\"))))))","v":{"$error":"#REF!"}},{"$f":"IF(Registration!D22=\"\",\"\",Registration!D22)","v":""}]
[{"$f":"Registration!A23","v":1012},{"$f":"Registration!B23&\" \"&Registration!C23","v":" "},{"$f":"IF(Registration!E23=\"X\",\"Faculty\",\"\")","v":""},{"$f":"IF(Registration!#REF!=2,\"S\",IF(Registration!#REF!=3,\"M\",IF(Registration!#REF!=4,\"L\",IF(Registration!#REF!=5,\"XL\",IF(Registration!#REF!=6,\"XXL\",IF(Registration!#REF!=7,\"XXXL\",\"\"))))))","v":{"$error":"#REF!"}},{"$f":"IF(Registration!D23=\"\",\"\",Registration!D23)","v":""}]
[{"$f":"Registration!A24","v":1013},{"$f":"Registration!B24&\" \"&Registration!C24","v":" "},{"$f":"IF(Registration!E24=\"X\",\"Faculty\",\"\")","v":""},{"$f":"IF(Registration!#REF!=2,\"S\",IF(Registration!#REF!=3,\"M\",IF(Registration!#REF!=4,\"L\",IF(Registration!#REF!=5,\"XL\",IF(Registration!#REF!=6,\"XXL\",IF(Registration!#REF!=7,\"XXXL\",\"\"))))))","v":{"$error":"#REF!"}},{"$f":"IF(Registration!D24=\"\",\"\",Registration!D24)","v":""}]
[{"$f":"Registration!A25","v":1014},{"$f":"Registration!B25&\" \"&Registration!C25","v":" "},{"$f":"IF(Registration!E25=\"X\",\"Faculty\",\"\")","v":""},{"$f":"IF(Registration!#REF!=2,\"S\",IF(Registration!#REF!=3,\"M\",IF(Registration!#REF!=4,\"L\",IF(Registration!#REF!=5,\"XL\",IF(Registration!#REF!=6,\"XXL\",IF(Registration!#REF!=7,\"XXXL\",\"\"))))))","v":{"$error":"#REF!"}},{"$f":"IF(Registration!D25=\"\",\"\",Registration!D25)","v":""}]
[{"$f":"Registration!A26","v":1015},{"$f":"Registration!B26&\" \"&Registration!C26","v":" "},{"$f":"IF(Registration!E26=\"X\",\"Faculty\",\"\")","v":""},{"$f":"IF(Registration!#REF!=2,\"S\",IF(Registration!#REF!=3,\"M\",IF(Registration!#REF!=4,\"L\",IF(Registration!#REF!=5,\"XL\",IF(Registration!#REF!=6,\"XXL\",IF(Registration!#REF!=7,\"XXXL\",\"\"))))))","v":{"$error":"#REF!"}},{"$f":"IF(Registration!D26=\"\",\"\",Registration!D26)","v":""}]
[{"$f":"Registration!A27","v":1016},{"$f":"Registration!B27&\" \"&Registration!C27","v":" "},{"$f":"IF(Registration!E27=\"X\",\"Faculty\",\"\")","v":""},{"$f":"IF(Registration!#REF!=2,\"S\",IF(Registration!#REF!=3,\"M\",IF(Registration!#REF!=4,\"L\",IF(Registration!#REF!=5,\"XL\",IF(Registration!#REF!=6,\"XXL\",IF(Registration!#REF!=7,\"XXXL\",\"\"))))))","v":{"$error":"#REF!"}},{"$f":"IF(Registration!D27=\"\",\"\",Registration!D27)","v":""}]
[{"$f":"Registration!A28","v":1017},{"$f":"Registration!B28&\" \"&Registration!C28","v":" "},{"$f":"IF(Registration!E28=\"X\",\"Faculty\",\"\")","v":""},{"$f":"IF(Registration!#REF!=2,\"S\",IF(Registration!#REF!=3,\"M\",IF(Registration!#REF!=4,\"L\",IF(Registration!#REF!=5,\"XL\",IF(Registration!#REF!=6,\"XXL\",IF(Registration!#REF!=7,\"XXXL\",\"\"))))))","v":{"$error":"#REF!"}},{"$f":"IF(Registration!D28=\"\",\"\",Registration!D28)","v":""}]
[{"$f":"Registration!A29","v":1018},{"$f":"Registration!B29&\" \"&Registration!C29","v":" "},{"$f":"IF(Registration!E29=\"X\",\"Faculty\",\"\")","v":""},{"$f":"IF(Registration!#REF!=2,\"S\",IF(Registration!#REF!=3,\"M\",IF(Registration!#REF!=4,\"L\",IF(Registration!#REF!=5,\"XL\",IF(Registration!#REF!=6,\"XXL\",IF(Registration!#REF!=7,\"XXXL\",\"\"))))))","v":{"$error":"#REF!"}},{"$f":"IF(Registration!D29=\"\",\"\",Registration!D29)","v":""}]
[{"$f":"Registration!A30","v":1019},{"$f":"Registration!B30&\" \"&Registration!C30","v":" "},{"$f":"IF(Registration!E30=\"X\",\"Faculty\",\"\")","v":""},{"$f":"IF(Registration!#REF!=2,\"S\",IF(Registration!#REF!=3,\"M\",IF(Registration!#REF!=4,\"L\",IF(Registration!#REF!=5,\"XL\",IF(Registration!#REF!=6,\"XXL\",IF(Registration!#REF!=7,\"XXXL\",\"\"))))))","v":{"$error":"#REF!"}},{"$f":"IF(Registration!D30=\"\",\"\",Registration!D30)","v":""}]
[{"$f":"Registration!A31","v":1020},{"$f":"Registration!B31&\" \"&Registration!C31","v":" "},{"$f":"IF(Registration!E31=\"X\",\"Faculty\",\"\")","v":""},{"$f":"IF(Registration!#REF!=2,\"S\",IF(Registration!#REF!=3,\"M\",IF(Registration!#REF!=4,\"L\",IF(Registration!#REF!=5,\"XL\",IF(Registration!#REF!=6,\"XXL\",IF(Registration!#REF!=7,\"XXXL\",\"\"))))))","v":{"$error":"#REF!"}},{"$f":"IF(Registration!D31=\"\",\"\",Registration!D31)","v":""}]
[{"$f":"Registration!A32","v":1021},{"$f":"Registration!B32&\" \"&Registration!C32","v":" "},{"$f":"IF(Registration!E32=\"X\",\"Faculty\",\"\")","v":""},{"$f":"IF(Registration!#REF!=2,\"S\",IF(Registration!#REF!=3,\"M\",IF(Registration!#REF!=4,\"L\",IF(Registration!#REF!=5,\"XL\",IF(Registration!#REF!=6,\"XXL\",IF(Registration!#REF!=7,\"XXXL\",\"\"))))))","v":{"$error":"#REF!"}},{"$f":"IF(Registration!D32=\"\",\"\",Registration!D32)","v":""}]
[{"$f":"Registration!A33","v":1022},{"$f":"Registration!B33&\" \"&Registration!C33","v":" "},{"$f":"IF(Registration!E33=\"X\",\"Faculty\",\"\")","v":""},{"$f":"IF(Registration!#REF!=2,\"S\",IF(Registration!#REF!=3,\"M\",IF(Registration!#REF!=4,\"L\",IF(Registration!#REF!=5,\"XL\",IF(Registration!#REF!=6,\"XXL\",IF(Registration!#REF!=7,\"XXXL\",\"\"))))))","v":{"$error":"#REF!"}},{"$f":"IF(Registration!D33=\"\",\"\",Registration!D33)","v":""}]
[{"$f":"Registration!A34","v":1023},{"$f":"Registration!B34&\" \"&Registration!C34","v":" "},{"$f":"IF(Registration!E34=\"X\",\"Faculty\",\"\")","v":""},{"$f":"IF(Registration!#REF!=2,\"S\",IF(Registration!#REF!=3,\"M\",IF(Registration!#REF!=4,\"L\",IF(Registration!#REF!=5,\"XL\",IF(Registration!#REF!=6,\"XXL\",IF(Registration!#REF!=7,\"XXXL\",\"\"))))))","v":{"$error":"#REF!"}},{"$f":"IF(Registration!D34=\"\",\"\",Registration!D34)","v":""}]
[{"$f":"Registration!A35","v":1024},{"$f":"Registration!B35&\" \"&Registration!C35","v":" "},{"$f":"IF(Registration!E35=\"X\",\"Faculty\",\"\")","v":""},{"$f":"IF(Registration!#REF!=2,\"S\",IF(Registration!#REF!=3,\"M\",IF(Registration!#REF!=4,\"L\",IF(Registration!#REF!=5,\"XL\",IF(Registration!#REF!=6,\"XXL\",IF(Registration!#REF!=7,\"XXXL\",\"\"))))))","v":{"$error":"#REF!"}},{"$f":"IF(Registration!D35=\"\",\"\",Registration!D35)","v":""}]
[{"$f":"Registration!A36","v":1025},{"$f":"Registration!B36&\" \"&Registration!C36","v":" "},{"$f":"IF(Registration!E36=\"X\",\"Faculty\",\"\")","v":""},{"$f":"IF(Registration!#REF!=2,\"S\",IF(Registration!#REF!=3,\"M\",IF(Registration!#REF!=4,\"L\",IF(Registration!#REF!=5,\"XL\",IF(Registration!#REF!=6,\"XXL\",IF(Registration!#REF!=7,\"XXXL\",\"\"))))))","v":{"$error":"#REF!"}},{"$f":"IF(Registration!D36=\"\",\"\",Registration!D36)","v":""}]
[{"$f":"Registration!A37","v":1026},{"$f":"Registration!B37&\" \"&Registration!C37","v":" "},{"$f":"IF(Registration!E37=\"X\",\"Faculty\",\"\")","v":""},{"$f":"IF(Registration!#REF!=2,\"S\",IF(Registration!#REF!=3,\"M\",IF(Registration!#REF!=4,\"L\",IF(Registration!#REF!=5,\"XL\",IF(Registration!#REF!=6,\"XXL\",IF(Registration!#REF!=7,\"XXXL\",\"\"))))))","v":{"$error":"#REF!"}},{"$f":"IF(Registration!D37=\"\",\"\",Registration!D37)","v":""}]
[{"$f":"Registration!A38","v":1027},{"$f":"Registration!B38&\" \"&Registration!C38","v":" "},{"$f":"IF(Registration!E38=\"X\",\"Faculty\",\"\")","v":""},{"$f":"IF(Registration!#REF!=2,\"S\",IF(Registration!#REF!=3,\"M\",IF(Registration!#REF!=4,\"L\",IF(Registration!#REF!=5,\"XL\",IF(Registration!#REF!=6,\"XXL\",IF(Registration!#REF!=7,\"XXXL\",\"\"))))))","v":{"$error":"#REF!"}},{"$f":"IF(Registration!D38=\"\",\"\",Registration!D38)","v":""}]
[{"$f":"Registration!A39","v":1028},{"$f":"Registration!B39&\" \"&Registration!C39","v":" "},{"$f":"IF(Registration!E39=\"X\",\"Faculty\",\"\")","v":""},{"$f":"IF(Registration!#REF!=2,\"S\",IF(Registration!#REF!=3,\"M\",IF(Registration!#REF!=4,\"L\",IF(Registration!#REF!=5,\"XL\",IF(Registration!#REF!=6,\"XXL\",IF(Registration!#REF!=7,\"XXXL\",\"\"))))))","v":{"$error":"#REF!"}},{"$f":"IF(Registration!D39=\"\",\"\",Registration!D39)","v":""}]
[{"$f":"Registration!A40","v":1029},{"$f":"Registration!B40&\" \"&Registration!C40","v":" "},{"$f":"IF(Registration!E40=\"X\",\"Faculty\",\"\")","v":""},{"$f":"IF(Registration!#REF!=2,\"S\",IF(Registration!#REF!=3,\"M\",IF(Registration!#REF!=4,\"L\",IF(Registration!#REF!=5,\"XL\",IF(Registration!#REF!=6,\"XXL\",IF(Registration!#REF!=7,\"XXXL\",\"\"))))))","v":{"$error":"#REF!"}},{"$f":"IF(Registration!D40=\"\",\"\",Registration!D40)","v":""}]
[{"$f":"Registration!A41","v":1030},{"$f":"Registration!B41&\" \"&Registration!C41","v":" "},{"$f":"IF(Registration!E41=\"X\",\"Faculty\",\"\")","v":""},{"$f":"IF(Registration!#REF!=2,\"S\",IF(Registration!#REF!=3,\"M\",IF(Registration!#REF!=4,\"L\",IF(Registration!#REF!=5,\"XL\",IF(Registration!#REF!=6,\"XXL\",IF(Registration!#REF!=7,\"XXXL\",\"\"))))))","v":{"$error":"#REF!"}},{"$f":"IF(Registration!D41=\"\",\"\",Registration!D41)","v":""}]
[{"$f":"Registration!A42","v":1031},{"$f":"Registration!B42&\" \"&Registration!C42","v":" "},{"$f":"IF(Registration!E42=\"X\",\"Faculty\",\"\")","v":""},{"$f":"IF(Registration!#REF!=2,\"S\",IF(Registration!#REF!=3,\"M\",IF(Registration!#REF!=4,\"L\",IF(Registration!#REF!=5,\"XL\",IF(Registration!#REF!=6,\"XXL\",IF(Registration!#REF!=7,\"XXXL\",\"\"))))))","v":{"$error":"#REF!"}},{"$f":"IF(Registration!D42=\"\",\"\",Registration!D42)","v":""}]
[{"$f":"Registration!A43","v":1032},{"$f":"Registration!B43&\" \"&Registration!C43","v":" "},{"$f":"IF(Registration!E43=\"X\",\"Faculty\",\"\")","v":""},{"$f":"IF(Registration!#REF!=2,\"S\",IF(Registration!#REF!=3,\"M\",IF(Registration!#REF!=4,\"L\",IF(Registration!#REF!=5,\"XL\",IF(Registration!#REF!=6,\"XXL\",IF(Registration!#REF!=7,\"XXXL\",\"\"))))))","v":{"$error":"#REF!"}},{"$f":"IF(Registration!D43=\"\",\"\",Registration!D43)","v":""}]
[{"$f":"Registration!A44","v":1033},{"$f":"Registration!B44&\" \"&Registration!C44","v":" "},{"$f":"IF(Registration!E44=\"X\",\"Faculty\",\"\")","v":""},{"$f":"IF(Registration!#REF!=2,\"S\",IF(Registration!#REF!=3,\"M\",IF(Registration!#REF!=4,\"L\",IF(Registration!#REF!=5,\"XL\",IF(Registration!#REF!=6,\"XXL\",IF(Registration!#REF!=7,\"XXXL\",\"\"))))))","v":{"$error":"#REF!"}},{"$f":"IF(Registration!D44=\"\",\"\",Registration!D44)","v":""}]
[{"$f":"Registration!A45","v":1034},{"$f":"Registration!B45&\" \"&Registration!C45","v":" "},{"$f":"IF(Registration!E45=\"X\",\"Faculty\",\"\")","v":""},{"$f":"IF(Registration!#REF!=2,\"S\",IF(Registration!#REF!=3,\"M\",IF(Registration!#REF!=4,\"L\",IF(Registration!#REF!=5,\"XL\",IF(Registration!#REF!=6,\"XXL\",IF(Registration!#REF!=7,\"XXXL\",\"\"))))))","v":{"$error":"#REF!"}},{"$f":"IF(Registration!D45=\"\",\"\",Registration!D45)","v":""}]
[{"$f":"Registration!A46","v":1035},{"$f":"Registration!B46&\" \"&Registration!C46","v":" "},{"$f":"IF(Registration!E46=\"X\",\"Faculty\",\"\")","v":""},{"$f":"IF(Registration!#REF!=2,\"S\",IF(Registration!#REF!=3,\"M\",IF(Registration!#REF!=4,\"L\",IF(Registration!#REF!=5,\"XL\",IF(Registration!#REF!=6,\"XXL\",IF(Registration!#REF!=7,\"XXXL\",\"\"))))))","v":{"$error":"#REF!"}},{"$f":"IF(Registration!D46=\"\",\"\",Registration!D46)","v":""}]
[{"$f":"Registration!A47","v":1036},{"$f":"Registration!B47&\" \"&Registration!C47","v":" "},{"$f":"IF(Registration!E47=\"X\",\"Faculty\",\"\")","v":""},{"$f":"IF(Registration!#REF!=2,\"S\",IF(Registration!#REF!=3,\"M\",IF(Registration!#REF!=4,\"L\",IF(Registration!#REF!=5,\"XL\",IF(Registration!#REF!=6,\"XXL\",IF(Registration!#REF!=7,\"XXXL\",\"\"))))))","v":{"$error":"#REF!"}},{"$f":"IF(Registration!D47=\"\",\"\",Registration!D47)","v":""}]
[{"$f":"Registration!A48","v":1037},{"$f":"Registration!B48&\" \"&Registration!C48","v":" "},{"$f":"IF(Registration!E48=\"X\",\"Faculty\",\"\")","v":""},{"$f":"IF(Registration!#REF!=2,\"S\",IF(Registration!#REF!=3,\"M\",IF(Registration!#REF!=4,\"L\",IF(Registration!#REF!=5,\"XL\",IF(Registration!#REF!=6,\"XXL\",IF(Registration!#REF!=7,\"XXXL\",\"\"))))))","v":{"$error":"#REF!"}},{"$f":"IF(Registration!D48=\"\",\"\",Registration!D48)","v":""}]
[{"$f":"Registration!A49","v":1038},{"$f":"Registration!B49&\" \"&Registration!C49","v":" "},{"$f":"IF(Registration!E49=\"X\",\"Faculty\",\"\")","v":""},{"$f":"IF(Registration!#REF!=2,\"S\",IF(Registration!#REF!=3,\"M\",IF(Registration!#REF!=4,\"L\",IF(Registration!#REF!=5,\"XL\",IF(Registration!#REF!=6,\"XXL\",IF(Registration!#REF!=7,\"XXXL\",\"\"))))))","v":{"$error":"#REF!"}},{"$f":"IF(Registration!D49=\"\",\"\",Registration!D49)","v":""}]
[{"$f":"Registration!A50","v":1039},{"$f":"Registration!B50&\" \"&Registration!C50","v":" "},{"$f":"IF(Registration!E50=\"X\",\"Faculty\",\"\")","v":""},{"$f":"IF(Registration!#REF!=2,\"S\",IF(Registration!#REF!=3,\"M\",IF(Registration!#REF!=4,\"L\",IF(Registration!#REF!=5,\"XL\",IF(Registration!#REF!=6,\"XXL\",IF(Registration!#REF!=7,\"XXXL\",\"\"))))))","v":{"$error":"#REF!"}},{"$f":"IF(Registration!D50=\"\",\"\",Registration!D50)","v":""}]
[{"$f":"Registration!A51","v":1040},{"$f":"Registration!B51&\" \"&Registration!C51","v":" "},{"$f":"IF(Registration!E51=\"X\",\"Faculty\",\"\")","v":""},{"$f":"IF(Registration!#REF!=2,\"S\",IF(Registration!#REF!=3,\"M\",IF(Registration!#REF!=4,\"L\",IF(Registration!#REF!=5,\"XL\",IF(Registration!#REF!=6,\"XXL\",IF(Registration!#REF!=7,\"XXXL\",\"\"))))))","v":{"$error":"#REF!"}},{"$f":"IF(Registration!D51=\"\",\"\",Registration!D51)","v":""}]
[{"$f":"Registration!A52","v":1041},{"$f":"Registration!B52&\" \"&Registration!C52","v":" "},{"$f":"IF(Registration!E52=\"X\",\"Faculty\",\"\")","v":""},{"$f":"IF(Registration!#REF!=2,\"S\",IF(Registration!#REF!=3,\"M\",IF(Registration!#REF!=4,\"L\",IF(Registration!#REF!=5,\"XL\",IF(Registration!#REF!=6,\"XXL\",IF(Registration!#REF!=7,\"XXXL\",\"\"))))))","v":{"$error":"#REF!"}},{"$f":"IF(Registration!D52=\"\",\"\",Registration!D52)","v":""}]
[{"$f":"Registration!A53","v":1042},{"$f":"Registration!B53&\" \"&Registration!C53","v":" "},{"$f":"IF(Registration!E53=\"X\",\"Faculty\",\"\")","v":""},{"$f":"IF(Registration!#REF!=2,\"S\",IF(Registration!#REF!=3,\"M\",IF(Registration!#REF!=4,\"L\",IF(Registration!#REF!=5,\"XL\",IF(Registration!#REF!=6,\"XXL\",IF(Registration!#REF!=7,\"XXXL\",\"\"))))))","v":{"$error":"#REF!"}},{"$f":"IF(Registration!D53=\"\",\"\",Registration!D53)","v":""}]
[{"$f":"Registration!A54","v":1043},{"$f":"Registration!B54&\" \"&Registration!C54","v":" "},{"$f":"IF(Registration!E54=\"X\",\"Faculty\",\"\")","v":""},{"$f":"IF(Registration!#REF!=2,\"S\",IF(Registration!#REF!=3,\"M\",IF(Registration!#REF!=4,\"L\",IF(Registration!#REF!=5,\"XL\",IF(Registration!#REF!=6,\"XXL\",IF(Registration!#REF!=7,\"XXXL\",\"\"))))))","v":{"$error":"#REF!"}},{"$f":"IF(Registration!D54=\"\",\"\",Registration!D54)","v":""}]
[{"$f":"Registration!A55","v":1044},{"$f":"Registration!B55&\" \"&Registration!C55","v":" "},{"$f":"IF(Registration!E55=\"X\",\"Faculty\",\"\")","v":""},{"$f":"IF(Registration!#REF!=2,\"S\",IF(Registration!#REF!=3,\"M\",IF(Registration!#REF!=4,\"L\",IF(Registration!#REF!=5,\"XL\",IF(Registration!#REF!=6,\"XXL\",IF(Registration!#REF!=7,\"XXXL\",\"\"))))))","v":{"$error":"#REF!"}},{"$f":"IF(Registration!D55=\"\",\"\",Registration!D55)","v":""}]
[{"$f":"Registration!A56","v":1045},{"$f":"Registration!B56&\" \"&Registration!C56","v":" "},{"$f":"IF(Registration!E56=\"X\",\"Faculty\",\"\")","v":""},{"$f":"IF(Registration!#REF!=2,\"S\",IF(Registration!#REF!=3,\"M\",IF(Registration!#REF!=4,\"L\",IF(Registration!#REF!=5,\"XL\",IF(Registration!#REF!=6,\"XXL\",IF(Registration!#REF!=7,\"XXXL\",\"\"))))))","v":{"$error":"#REF!"}},{"$f":"IF(Registration!D56=\"\",\"\",Registration!D56)","v":""}]
[{"$f":"Registration!A57","v":1046},{"$f":"Registration!B57&\" \"&Registration!C57","v":" "},{"$f":"IF(Registration!E57=\"X\",\"Faculty\",\"\")","v":""},{"$f":"IF(Registration!#REF!=2,\"S\",IF(Registration!#REF!=3,\"M\",IF(Registration!#REF!=4,\"L\",IF(Registration!#REF!=5,\"XL\",IF(Registration!#REF!=6,\"XXL\",IF(Registration!#REF!=7,\"XXXL\",\"\"))))))","v":{"$error":"#REF!"}},{"$f":"IF(Registration!D57=\"\",\"\",Registration!D57)","v":""}]
[{"$f":"Registration!A58","v":1047},{"$f":"Registration!B58&\" \"&Registration!C58","v":" "},{"$f":"IF(Registration!E58=\"X\",\"Faculty\",\"\")","v":""},{"$f":"IF(Registration!#REF!=2,\"S\",IF(Registration!#REF!=3,\"M\",IF(Registration!#REF!=4,\"L\",IF(Registration!#REF!=5,\"XL\",IF(Registration!#REF!=6,\"XXL\",IF(Registration!#REF!=7,\"XXXL\",\"\"))))))","v":{"$error":"#REF!"}},{"$f":"IF(Registration!D58=\"\",\"\",Registration!D58)","v":""}]
[{"$f":"Registration!A59","v":1048},{"$f":"Registration!B59&\" \"&Registration!C59","v":" "},{"$f":"IF(Registration!E59=\"X\",\"Faculty\",\"\")","v":""},{"$f":"IF(Registration!#REF!=2,\"S\",IF(Registration!#REF!=3,\"M\",IF(Registration!#REF!=4,\"L\",IF(Registration!#REF!=5,\"XL\",IF(Registration!#REF!=6,\"XXL\",IF(Registration!#REF!=7,\"XXXL\",\"\"))))))","v":{"$error":"#REF!"}},{"$f":"IF(Registration!D59=\"\",\"\",Registration!D59)","v":""}]
[{"$f":"Registration!A60","v":1049},{"$f":"Registration!B60&\" \"&Registration!C60","v":" "},{"$f":"IF(Registration!E60=\"X\",\"Faculty\",\"\")","v":""},{"$f":"IF(Registration!#REF!=2,\"S\",IF(Registration!#REF!=3,\"M\",IF(Registration!#REF!=4,\"L\",IF(Registration!#REF!=5,\"XL\",IF(Registration!#REF!=6,\"XXL\",IF(Registration!#REF!=7,\"XXXL\",\"\"))))))","v":{"$error":"#REF!"}},{"$f":"IF(Registration!D60=\"\",\"\",Registration!D60)","v":""}]
[{"$f":"Registration!A61","v":1050},{"$f":"Registration!B61&\" \"&Registration!C61","v":" "},{"$f":"IF(Registration!E61=\"X\",\"Faculty\",\"\")","v":""},{"$f":"IF(Registration!#REF!=2,\"S\",IF(Registration!#REF!=3,\"M\",IF(Registration!#REF!=4,\"L\",IF(Registration!#REF!=5,\"XL\",IF(Registration!#REF!=6,\"XXL\",IF(Registration!#REF!=7,\"XXXL\",\"\"))))))","v":{"$error":"#REF!"}},{"$f":"IF(Registration!D61=\"\",\"\",Registration!D61)","v":""}]
[{"$f":"Registration!A62","v":1051},{"$f":"Registration!B62&\" \"&Registration!C62","v":" "},{"$f":"IF(Registration!E62=\"X\",\"Faculty\",\"\")","v":""},{"$f":"IF(Registration!#REF!=2,\"S\",IF(Registration!#REF!=3,\"M\",IF(Registration!#REF!=4,\"L\",IF(Registration!#REF!=5,\"XL\",IF(Registration!#REF!=6,\"XXL\",IF(Registration!#REF!=7,\"XXXL\",\"\"))))))","v":{"$error":"#REF!"}},{"$f":"IF(Registration!D62=\"\",\"\",Registration!D62)","v":""}]
[{"$f":"Registration!A63","v":1052},{"$f":"Registration!B63&\" \"&Registration!C63","v":" "},{"$f":"IF(Registration!E63=\"X\",\"Faculty\",\"\")","v":""},{"$f":"IF(Registration!#REF!=2,\"S\",IF(Registration!#REF!=3,\"M\",IF(Registration!#REF!=4,\"L\",IF(Registration!#REF!=5,\"XL\",IF(Registration!#REF!=6,\"XXL\",IF(Registration!#REF!=7,\"XXXL\",\"\"))))))","v":{"$error":"#REF!"}},{"$f":"IF(Registration!D63=\"\",\"\",Registration!D63)","v":""}]
[{"$f":"Registration!A64","v":1053},{"$f":"Registration!B64&\" \"&Registration!C64","v":" "},{"$f":"IF(Registration!E64=\"X\",\"Faculty\",\"\")","v":""},{"$f":"IF(Registration!#REF!=2,\"S\",IF(Registration!#REF!=3,\"M\",IF(Registration!#REF!=4,\"L\",IF(Registration!#REF!=5,\"XL\",IF(Registration!#REF!=6,\"XXL\",IF(Registration!#REF!=7,\"XXXL\",\"\"))))))","v":{"$error":"#REF!"}},{"$f":"IF(Registration!D64=\"\",\"\",Registration!D64)","v":""}]
[{"$f":"Registration!A65","v":1054},{"$f":"Registration!B65&\" \"&Registration!C65","v":" "},{"$f":"IF(Registration!E65=\"X\",\"Faculty\",\"\")","v":""},{"$f":"IF(Registration!#REF!=2,\"S\",IF(Registration!#REF!=3,\"M\",IF(Registration!#REF!=4,\"L\",IF(Registration!#REF!=5,\"XL\",IF(Registration!#REF!=6,\"XXL\",IF(Registration!#REF!=7,\"XXXL\",\"\"))))))","v":{"$error":"#REF!"}},{"$f":"IF(Registration!D65=\"\",\"\",Registration!D65)","v":""}]
[{"$f":"Registration!A66","v":1055},{"$f":"Registration!B66&\" \"&Registration!C66","v":" "},{"$f":"IF(Registration!E66=\"X\",\"Faculty\",\"\")","v":""},{"$f":"IF(Registration!#REF!=2,\"S\",IF(Registration!#REF!=3,\"M\",IF(Registration!#REF!=4,\"L\",IF(Registration!#REF!=5,\"XL\",IF(Registration!#REF!=6,\"XXL\",IF(Registration!#REF!=7,\"XXXL\",\"\"))))))","v":{"$error":"#REF!"}},{"$f":"IF(Registration!D66=\"\",\"\",Registration!D66)","v":""}]
[{"$f":"Registration!A67","v":1056},{"$f":"Registration!B67&\" \"&Registration!C67","v":" "},{"$f":"IF(Registration!E67=\"X\",\"Faculty\",\"\")","v":""},{"$f":"IF(Registration!#REF!=2,\"S\",IF(Registration!#REF!=3,\"M\",IF(Registration!#REF!=4,\"L\",IF(Registration!#REF!=5,\"XL\",IF(Registration!#REF!=6,\"XXL\",IF(Registration!#REF!=7,\"XXXL\",\"\"))))))","v":{"$error":"#REF!"}},{"$f":"IF(Registration!D67=\"\",\"\",Registration!D67)","v":""}]
[{"$f":"Registration!A68","v":1057},{"$f":"Registration!B68&\" \"&Registration!C68","v":" "},{"$f":"IF(Registration!E68=\"X\",\"Faculty\",\"\")","v":""},{"$f":"IF(Registration!#REF!=2,\"S\",IF(Registration!#REF!=3,\"M\",IF(Registration!#REF!=4,\"L\",IF(Registration!#REF!=5,\"XL\",IF(Registration!#REF!=6,\"XXL\",IF(Registration!#REF!=7,\"XXXL\",\"\"))))))","v":{"$error":"#REF!"}},{"$f":"IF(Registration!D68=\"\",\"\",Registration!D68)","v":""}]
[{"$f":"Registration!A69","v":1058},{"$f":"Registration!B69&\" \"&Registration!C69","v":" "},{"$f":"IF(Registration!E69=\"X\",\"Faculty\",\"\")","v":""},{"$f":"IF(Registration!#REF!=2,\"S\",IF(Registration!#REF!=3,\"M\",IF(Registration!#REF!=4,\"L\",IF(Registration!#REF!=5,\"XL\",IF(Registration!#REF!=6,\"XXL\",IF(Registration!#REF!=7,\"XXXL\",\"\"))))))","v":{"$error":"#REF!"}},{"$f":"IF(Registration!D69=\"\",\"\",Registration!D69)","v":""}]
[{"$f":"Registration!A70","v":1059},{"$f":"Registration!B70&\" \"&Registration!C70","v":" "},{"$f":"IF(Registration!E70=\"X\",\"Faculty\",\"\")","v":""},{"$f":"IF(Registration!#REF!=2,\"S\",IF(Registration!#REF!=3,\"M\",IF(Registration!#REF!=4,\"L\",IF(Registration!#REF!=5,\"XL\",IF(Registration!#REF!=6,\"XXL\",IF(Registration!#REF!=7,\"XXXL\",\"\"))))))","v":{"$error":"#REF!"}},{"$f":"IF(Registration!D70=\"\",\"\",Registration!D70)","v":""}]
[{"$f":"Registration!A71","v":1060},{"$f":"Registration!B71&\" \"&Registration!C71","v":" "},{"$f":"IF(Registration!E71=\"X\",\"Faculty\",\"\")","v":""},{"$f":"IF(Registration!#REF!=2,\"S\",IF(Registration!#REF!=3,\"M\",IF(Registration!#REF!=4,\"L\",IF(Registration!#REF!=5,\"XL\",IF(Registration!#REF!=6,\"XXL\",IF(Registration!#REF!=7,\"XXXL\",\"\"))))))","v":{"$error":"#REF!"}},{"$f":"IF(Registration!D71=\"\",\"\",Registration!D71)","v":""}]
[{"$f":"Registration!A72","v":1061},{"$f":"Registration!B72&\" \"&Registration!C72","v":" "},{"$f":"IF(Registration!E72=\"X\",\"Faculty\",\"\")","v":""},{"$f":"IF(Registration!#REF!=2,\"S\",IF(Registration!#REF!=3,\"M\",IF(Registration!#REF!=4,\"L\",IF(Registration!#REF!=5,\"XL\",IF(Registration!#REF!=6,\"XXL\",IF(Registration!#REF!=7,\"XXXL\",\"\"))))))","v":{"$error":"#REF!"}},{"$f":"IF(Registration!D72=\"\",\"\",Registration!D72)","v":""}]
[{"$f":"Registration!A73","v":1062},{"$f":"Registration!B73&\" \"&Registration!C73","v":" "},{"$f":"IF(Registration!E73=\"X\",\"Faculty\",\"\")","v":""},{"$f":"IF(Registration!#REF!=2,\"S\",IF(Registration!#REF!=3,\"M\",IF(Registration!#REF!=4,\"L\",IF(Registration!#REF!=5,\"XL\",IF(Registration!#REF!=6,\"XXL\",IF(Registration!#REF!=7,\"XXXL\",\"\"))))))","v":{"$error":"#REF!"}},{"$f":"IF(Registration!D73=\"\",\"\",Registration!D73)","v":""}]
[{"$f":"Registration!A74","v":1063},{"$f":"Registration!B74&\" \"&Registration!C74","v":" "},{"$f":"IF(Registration!E74=\"X\",\"Faculty\",\"\")","v":""},{"$f":"IF(Registration!#REF!=2,\"S\",IF(Registration!#REF!=3,\"M\",IF(Registration!#REF!=4,\"L\",IF(Registration!#REF!=5,\"XL\",IF(Registration!#REF!=6,\"XXL\",IF(Registration!#REF!=7,\"XXXL\",\"\"))))))","v":{"$error":"#REF!"}},{"$f":"IF(Registration!D74=\"\",\"\",Registration!D74)","v":""}]
[{"$f":"Registration!A75","v":1064},{"$f":"Registration!B75&\" \"&Registration!C75","v":" "},{"$f":"IF(Registration!E75=\"X\",\"Faculty\",\"\")","v":""},{"$f":"IF(Registration!#REF!=2,\"S\",IF(Registration!#REF!=3,\"M\",IF(Registration!#REF!=4,\"L\",IF(Registration!#REF!=5,\"XL\",IF(Registration!#REF!=6,\"XXL\",IF(Registration!#REF!=7,\"XXXL\",\"\"))))))","v":{"$error":"#REF!"}},{"$f":"IF(Registration!D75=\"\",\"\",Registration!D75)","v":""}]
[{"$f":"Registration!A76","v":1065},{"$f":"Registration!B76&\" \"&Registration!C76","v":" "},{"$f":"IF(Registration!E76=\"X\",\"Faculty\",\"\")","v":""},{"$f":"IF(Registration!#REF!=2,\"S\",IF(Registration!#REF!=3,\"M\",IF(Registration!#REF!=4,\"L\",IF(Registration!#REF!=5,\"XL\",IF(Registration!#REF!=6,\"XXL\",IF(Registration!#REF!=7,\"XXXL\",\"\"))))))","v":{"$error":"#REF!"}},{"$f":"IF(Registration!D76=\"\",\"\",Registration!D76)","v":""}]
[{"$f":"Registration!A77","v":1066},{"$f":"Registration!B77&\" \"&Registration!C77","v":" "},{"$f":"IF(Registration!E77=\"X\",\"Faculty\",\"\")","v":""},{"$f":"IF(Registration!#REF!=2,\"S\",IF(Registration!#REF!=3,\"M\",IF(Registration!#REF!=4,\"L\",IF(Registration!#REF!=5,\"XL\",IF(Registration!#REF!=6,\"XXL\",IF(Registration!#REF!=7,\"XXXL\",\"\"))))))","v":{"$error":"#REF!"}},{"$f":"IF(Registration!D77=\"\",\"\",Registration!D77)","v":""}]
[{"$f":"Registration!A78","v":1067},{"$f":"Registration!B78&\" \"&Registration!C78","v":" "},{"$f":"IF(Registration!E78=\"X\",\"Faculty\",\"\")","v":""},{"$f":"IF(Registration!#REF!=2,\"S\",IF(Registration!#REF!=3,\"M\",IF(Registration!#REF!=4,\"L\",IF(Registration!#REF!=5,\"XL\",IF(Registration!#REF!=6,\"XXL\",IF(Registration!#REF!=7,\"XXXL\",\"\"))))))","v":{"$error":"#REF!"}},{"$f":"IF(Registration!D78=\"\",\"\",Registration!D78)","v":""}]
[{"$f":"Registration!A79","v":1068},{"$f":"Registration!B79&\" \"&Registration!C79","v":" "},{"$f":"IF(Registration!E79=\"X\",\"Faculty\",\"\")","v":""},{"$f":"IF(Registration!#REF!=2,\"S\",IF(Registration!#REF!=3,\"M\",IF(Registration!#REF!=4,\"L\",IF(Registration!#REF!=5,\"XL\",IF(Registration!#REF!=6,\"XXL\",IF(Registration!#REF!=7,\"XXXL\",\"\"))))))","v":{"$error":"#REF!"}},{"$f":"IF(Registration!D79=\"\",\"\",Registration!D79)","v":""}]
[{"$f":"Registration!A80","v":1069},{"$f":"Registration!B80&\" \"&Registration!C80","v":" "},{"$f":"IF(Registration!E80=\"X\",\"Faculty\",\"\")","v":""},{"$f":"IF(Registration!#REF!=2,\"S\",IF(Registration!#REF!=3,\"M\",IF(Registration!#REF!=4,\"L\",IF(Registration!#REF!=5,\"XL\",IF(Registration!#REF!=6,\"XXL\",IF(Registration!#REF!=7,\"XXXL\",\"\"))))))","v":{"$error":"#REF!"}},{"$f":"IF(Registration!D80=\"\",\"\",Registration!D80)","v":""}]
[{"$f":"Registration!A81","v":1070},{"$f":"Registration!B81&\" \"&Registration!C81","v":" "},{"$f":"IF(Registration!E81=\"X\",\"Faculty\",\"\")","v":""},{"$f":"IF(Registration!#REF!=2,\"S\",IF(Registration!#REF!=3,\"M\",IF(Registration!#REF!=4,\"L\",IF(Registration!#REF!=5,\"XL\",IF(Registration!#REF!=6,\"XXL\",IF(Registration!#REF!=7,\"XXXL\",\"\"))))))","v":{"$error":"#REF!"}},{"$f":"IF(Registration!D81=\"\",\"\",Registration!D81)","v":""}]
[{"$f":"Registration!A82","v":1071},{"$f":"Registration!B82&\" \"&Registration!C82","v":" "},{"$f":"IF(Registration!E82=\"X\",\"Faculty\",\"\")","v":""},{"$f":"IF(Registration!#REF!=2,\"S\",IF(Registration!#REF!=3,\"M\",IF(Registration!#REF!=4,\"L\",IF(Registration!#REF!=5,\"XL\",IF(Registration!#REF!=6,\"XXL\",IF(Registration!#REF!=7,\"XXXL\",\"\"))))))","v":{"$error":"#REF!"}},{"$f":"IF(Registration!D82=\"\",\"\",Registration!D82)","v":""}]
[{"$f":"Registration!A83","v":1072},{"$f":"Registration!B83&\" \"&Registration!C83","v":" "},{"$f":"IF(Registration!E83=\"X\",\"Faculty\",\"\")","v":""},{"$f":"IF(Registration!#REF!=2,\"S\",IF(Registration!#REF!=3,\"M\",IF(Registration!#REF!=4,\"L\",IF(Registration!#REF!=5,\"XL\",IF(Registration!#REF!=6,\"XXL\",IF(Registration!#REF!=7,\"XXXL\",\"\"))))))","v":{"$error":"#REF!"}},{"$f":"IF(Registration!D83=\"\",\"\",Registration!D83)","v":""}]
[{"$f":"Registration!A84","v":1073},{"$f":"Registration!B84&\" \"&Registration!C84","v":" "},{"$f":"IF(Registration!E84=\"X\",\"Faculty\",\"\")","v":""},{"$f":"IF(Registration!#REF!=2,\"S\",IF(Registration!#REF!=3,\"M\",IF(Registration!#REF!=4,\"L\",IF(Registration!#REF!=5,\"XL\",IF(Registration!#REF!=6,\"XXL\",IF(Registration!#REF!=7,\"XXXL\",\"\"))))))","v":{"$error":"#REF!"}},{"$f":"IF(Registration!D84=\"\",\"\",Registration!D84)","v":""}]
[{"$f":"Registration!A85","v":1074},{"$f":"Registration!B85&\" \"&Registration!C85","v":" "},{"$f":"IF(Registration!E85=\"X\",\"Faculty\",\"\")","v":""},{"$f":"IF(Registration!#REF!=2,\"S\",IF(Registration!#REF!=3,\"M\",IF(Registration!#REF!=4,\"L\",IF(Registration!#REF!=5,\"XL\",IF(Registration!#REF!=6,\"XXL\",IF(Registration!#REF!=7,\"XXXL\",\"\"))))))","v":{"$error":"#REF!"}},{"$f":"IF(Registration!D85=\"\",\"\",Registration!D85)","v":""}]
[{"$f":"Registration!A86","v":1075},{"$f":"Registration!B86&\" \"&Registration!C86","v":" "},{"$f":"IF(Registration!E86=\"X\",\"Faculty\",\"\")","v":""},{"$f":"IF(Registration!#REF!=2,\"S\",IF(Registration!#REF!=3,\"M\",IF(Registration!#REF!=4,\"L\",IF(Registration!#REF!=5,\"XL\",IF(Registration!#REF!=6,\"XXL\",IF(Registration!#REF!=7,\"XXXL\",\"\"))))))","v":{"$error":"#REF!"}},{"$f":"IF(Registration!D86=\"\",\"\",Registration!D86)","v":""}]
[{"$f":"Registration!A87","v":1076},{"$f":"Registration!B87&\" \"&Registration!C87","v":" "},{"$f":"IF(Registration!E87=\"X\",\"Faculty\",\"\")","v":""},{"$f":"IF(Registration!#REF!=2,\"S\",IF(Registration!#REF!=3,\"M\",IF(Registration!#REF!=4,\"L\",IF(Registration!#REF!=5,\"XL\",IF(Registration!#REF!=6,\"XXL\",IF(Registration!#REF!=7,\"XXXL\",\"\"))))))","v":{"$error":"#REF!"}},{"$f":"IF(Registration!D87=\"\",\"\",Registration!D87)","v":""}]
[{"$f":"Registration!A88","v":1077},{"$f":"Registration!B88&\" \"&Registration!C88","v":" "},{"$f":"IF(Registration!E88=\"X\",\"Faculty\",\"\")","v":""},{"$f":"IF(Registration!#REF!=2,\"S\",IF(Registration!#REF!=3,\"M\",IF(Registration!#REF!=4,\"L\",IF(Registration!#REF!=5,\"XL\",IF(Registration!#REF!=6,\"XXL\",IF(Registration!#REF!=7,\"XXXL\",\"\"))))))","v":{"$error":"#REF!"}},{"$f":"IF(Registration!D88=\"\",\"\",Registration!D88)","v":""}]
[{"$f":"Registration!A89","v":1078},{"$f":"Registration!B89&\" \"&Registration!C89","v":" "},{"$f":"IF(Registration!E89=\"X\",\"Faculty\",\"\")","v":""},{"$f":"IF(Registration!#REF!=2,\"S\",IF(Registration!#REF!=3,\"M\",IF(Registration!#REF!=4,\"L\",IF(Registration!#REF!=5,\"XL\",IF(Registration!#REF!=6,\"XXL\",IF(Registration!#REF!=7,\"XXXL\",\"\"))))))","v":{"$error":"#REF!"}},{"$f":"IF(Registration!D89=\"\",\"\",Registration!D89)","v":""}]
[{"$f":"Registration!A90","v":1079},{"$f":"Registration!B90&\" \"&Registration!C90","v":" "},{"$f":"IF(Registration!E90=\"X\",\"Faculty\",\"\")","v":""},{"$f":"IF(Registration!#REF!=2,\"S\",IF(Registration!#REF!=3,\"M\",IF(Registration!#REF!=4,\"L\",IF(Registration!#REF!=5,\"XL\",IF(Registration!#REF!=6,\"XXL\",IF(Registration!#REF!=7,\"XXXL\",\"\"))))))","v":{"$error":"#REF!"}},{"$f":"IF(Registration!D90=\"\",\"\",Registration!D90)","v":""}]
[{"$f":"Registration!A91","v":1080},{"$f":"Registration!B91&\" \"&Registration!C91","v":" "},{"$f":"IF(Registration!E91=\"X\",\"Faculty\",\"\")","v":""},{"$f":"IF(Registration!#REF!=2,\"S\",IF(Registration!#REF!=3,\"M\",IF(Registration!#REF!=4,\"L\",IF(Registration!#REF!=5,\"XL\",IF(Registration!#REF!=6,\"XXL\",IF(Registration!#REF!=7,\"XXXL\",\"\"))))))","v":{"$error":"#REF!"}},{"$f":"IF(Registration!D91=\"\",\"\",Registration!D91)","v":""}]
[{"$f":"Registration!A92","v":1081},{"$f":"Registration!B92&\" \"&Registration!C92","v":" "},{"$f":"IF(Registration!E92=\"X\",\"Faculty\",\"\")","v":""},{"$f":"IF(Registration!#REF!=2,\"S\",IF(Registration!#REF!=3,\"M\",IF(Registration!#REF!=4,\"L\",IF(Registration!#REF!=5,\"XL\",IF(Registration!#REF!=6,\"XXL\",IF(Registration!#REF!=7,\"XXXL\",\"\"))))))","v":{"$error":"#REF!"}},{"$f":"IF(Registration!D92=\"\",\"\",Registration!D92)","v":""}]
[{"$f":"Registration!A93","v":1082},{"$f":"Registration!B93&\" \"&Registration!C93","v":" "},{"$f":"IF(Registration!E93=\"X\",\"Faculty\",\"\")","v":""},{"$f":"IF(Registration!#REF!=2,\"S\",IF(Registration!#REF!=3,\"M\",IF(Registration!#REF!=4,\"L\",IF(Registration!#REF!=5,\"XL\",IF(Registration!#REF!=6,\"XXL\",IF(Registration!#REF!=7,\"XXXL\",\"\"))))))","v":{"$error":"#REF!"}},{"$f":"IF(Registration!D93=\"\",\"\",Registration!D93)","v":""}]
[{"$f":"Registration!A94","v":1083},{"$f":"Registration!B94&\" \"&Registration!C94","v":" "},{"$f":"IF(Registration!E94=\"X\",\"Faculty\",\"\")","v":""},{"$f":"IF(Registration!#REF!=2,\"S\",IF(Registration!#REF!=3,\"M\",IF(Registration!#REF!=4,\"L\",IF(Registration!#REF!=5,\"XL\",IF(Registration!#REF!=6,\"XXL\",IF(Registration!#REF!=7,\"XXXL\",\"\"))))))","v":{"$error":"#REF!"}},{"$f":"IF(Registration!D94=\"\",\"\",Registration!D94)","v":""}]
[{"$f":"Registration!A95","v":1084},{"$f":"Registration!B95&\" \"&Registration!C95","v":" "},{"$f":"IF(Registration!E95=\"X\",\"Faculty\",\"\")","v":""},{"$f":"IF(Registration!#REF!=2,\"S\",IF(Registration!#REF!=3,\"M\",IF(Registration!#REF!=4,\"L\",IF(Registration!#REF!=5,\"XL\",IF(Registration!#REF!=6,\"XXL\",IF(Registration!#REF!=7,\"XXXL\",\"\"))))))","v":{"$error":"#REF!"}},{"$f":"IF(Registration!D95=\"\",\"\",Registration!D95)","v":""}]
[{"$f":"Registration!A96","v":1085},{"$f":"Registration!B96&\" \"&Registration!C96","v":" "},{"$f":"IF(Registration!E96=\"X\",\"Faculty\",\"\")","v":""},{"$f":"IF(Registration!#REF!=2,\"S\",IF(Registration!#REF!=3,\"M\",IF(Registration!#REF!=4,\"L\",IF(Registration!#REF!=5,\"XL\",IF(Registration!#REF!=6,\"XXL\",IF(Registration!#REF!=7,\"XXXL\",\"\"))))))","v":{"$error":"#REF!"}},{"$f":"IF(Registration!D96=\"\",\"\",Registration!D96)","v":""}]
[{"$f":"Registration!A97","v":1086},{"$f":"Registration!B97&\" \"&Registration!C97","v":" "},{"$f":"IF(Registration!E97=\"X\",\"Faculty\",\"\")","v":""},{"$f":"IF(Registration!#REF!=2,\"S\",IF(Registration!#REF!=3,\"M\",IF(Registration!#REF!=4,\"L\",IF(Registration!#REF!=5,\"XL\",IF(Registration!#REF!=6,\"XXL\",IF(Registration!#REF!=7,\"XXXL\",\"\"))))))","v":{"$error":"#REF!"}},{"$f":"IF(Registration!D97=\"\",\"\",Registration!D97)","v":""}]
[{"$f":"Registration!A98","v":1087},{"$f":"Registration!B98&\" \"&Registration!C98","v":" "},{"$f":"IF(Registration!E98=\"X\",\"Faculty\",\"\")","v":""},{"$f":"IF(Registration!#REF!=2,\"S\",IF(Registration!#REF!=3,\"M\",IF(Registration!#REF!=4,\"L\",IF(Registration!#REF!=5,\"XL\",IF(Registration!#REF!=6,\"XXL\",IF(Registration!#REF!=7,\"XXXL\",\"\"))))))","v":{"$error":"#REF!"}},{"$f":"IF(Registration!D98=\"\",\"\",Registration!D98)","v":""}]
[{"$f":"Registration!A99","v":1088},{"$f":"Registration!B99&\" \"&Registration!C99","v":" "},{"$f":"IF(Registration!E99=\"X\",\"Faculty\",\"\")","v":""},{"$f":"IF(Registration!#REF!=2,\"S\",IF(Registration!#REF!=3,\"M\",IF(Registration!#REF!=4,\"L\",IF(Registration!#REF!=5,\"XL\",IF(Registration!#REF!=6,\"XXL\",IF(Registration!#REF!=7,\"XXXL\",\"\"))))))","v":{"$error":"#REF!"}},{"$f":"IF(Registration!D99=\"\",\"\",Registration!D99)","v":""}]
[{"$f":"Registration!A100","v":1089},{"$f":"Registration!B100&\" \"&Registration!C100","v":" "},{"$f":"IF(Registration!E100=\"X\",\"Faculty\",\"\")","v":""},{"$f":"IF(Registration!#REF!=2,\"S\",IF(Registration!#REF!=3,\"M\",IF(Registration!#REF!=4,\"L\",IF(Registration!#REF!=5,\"XL\",IF(Registration!#REF!=6,\"XXL\",IF(Registration!#REF!=7,\"XXXL\",\"\"))))))","v":{"$error":"#REF!"}},{"$f":"IF(Registration!D100=\"\",\"\",Registration!D100)","v":""}]
[{"$f":"Registration!A101","v":1090},{"$f":"Registration!B101&\" \"&Registration!C101","v":" "},{"$f":"IF(Registration!E101=\"X\",\"Faculty\",\"\")","v":""},{"$f":"IF(Registration!#REF!=2,\"S\",IF(Registration!#REF!=3,\"M\",IF(Registration!#REF!=4,\"L\",IF(Registration!#REF!=5,\"XL\",IF(Registration!#REF!=6,\"XXL\",IF(Registration!#REF!=7,\"XXXL\",\"\"))))))","v":{"$error":"#REF!"}},{"$f":"IF(Registration!D101=\"\",\"\",Registration!D101)","v":""}]
[{"$f":"Registration!A102","v":1091},{"$f":"Registration!B102&\" \"&Registration!C102","v":" "},{"$f":"IF(Registration!E102=\"X\",\"Faculty\",\"\")","v":""},{"$f":"IF(Registration!#REF!=2,\"S\",IF(Registration!#REF!=3,\"M\",IF(Registration!#REF!=4,\"L\",IF(Registration!#REF!=5,\"XL\",IF(Registration!#REF!=6,\"XXL\",IF(Registration!#REF!=7,\"XXXL\",\"\"))))))","v":{"$error":"#REF!"}},{"$f":"IF(Registration!D102=\"\",\"\",Registration!D102)","v":""}]
[{"$f":"Registration!A103","v":1092},{"$f":"Registration!B103&\" \"&Registration!C103","v":" "},{"$f":"IF(Registration!E103=\"X\",\"Faculty\",\"\")","v":""},{"$f":"IF(Registration!#REF!=2,\"S\",IF(Registration!#REF!=3,\"M\",IF(Registration!#REF!=4,\"L\",IF(Registration!#REF!=5,\"XL\",IF(Registration!#REF!=6,\"XXL\",IF(Registration!#REF!=7,\"XXXL\",\"\"))))))","v":{"$error":"#REF!"}},{"$f":"IF(Registration!D103=\"\",\"\",Registration!D103)","v":""}]
[{"$f":"Registration!A104","v":1093},{"$f":"Registration!B104&\" \"&Registration!C104","v":" "},{"$f":"IF(Registration!E104=\"X\",\"Faculty\",\"\")","v":""},{"$f":"IF(Registration!#REF!=2,\"S\",IF(Registration!#REF!=3,\"M\",IF(Registration!#REF!=4,\"L\",IF(Registration!#REF!=5,\"XL\",IF(Registration!#REF!=6,\"XXL\",IF(Registration!#REF!=7,\"XXXL\",\"\"))))))","v":{"$error":"#REF!"}},{"$f":"IF(Registration!D104=\"\",\"\",Registration!D104)","v":""}]
[{"$f":"Registration!A105","v":1094},{"$f":"Registration!B105&\" \"&Registration!C105","v":" "},{"$f":"IF(Registration!E105=\"X\",\"Faculty\",\"\")","v":""},{"$f":"IF(Registration!#REF!=2,\"S\",IF(Registration!#REF!=3,\"M\",IF(Registration!#REF!=4,\"L\",IF(Registration!#REF!=5,\"XL\",IF(Registration!#REF!=6,\"XXL\",IF(Registration!#REF!=7,\"XXXL\",\"\"))))))","v":{"$error":"#REF!"}},{"$f":"IF(Registration!D105=\"\",\"\",Registration!D105)","v":""}]
[{"$f":"Registration!A106","v":1095},{"$f":"Registration!B106&\" \"&Registration!C106","v":" "},{"$f":"IF(Registration!E106=\"X\",\"Faculty\",\"\")","v":""},{"$f":"IF(Registration!#REF!=2,\"S\",IF(Registration!#REF!=3,\"M\",IF(Registration!#REF!=4,\"L\",IF(Registration!#REF!=5,\"XL\",IF(Registration!#REF!=6,\"XXL\",IF(Registration!#REF!=7,\"XXXL\",\"\"))))))","v":{"$error":"#REF!"}},{"$f":"IF(Registration!D106=\"\",\"\",Registration!D106)","v":""}]
[{"$f":"Registration!A107","v":1096},{"$f":"Registration!B107&\" \"&Registration!C107","v":" "},{"$f":"IF(Registration!E107=\"X\",\"Faculty\",\"\")","v":""},{"$f":"IF(Registration!#REF!=2,\"S\",IF(Registration!#REF!=3,\"M\",IF(Registration!#REF!=4,\"L\",IF(Registration!#REF!=5,\"XL\",IF(Registration!#REF!=6,\"XXL\",IF(Registration!#REF!=7,\"XXXL\",\"\"))))))","v":{"$error":"#REF!"}},{"$f":"IF(Registration!D107=\"\",\"\",Registration!D107)","v":""}]
[{"$f":"Registration!A108","v":1097},{"$f":"Registration!B108&\" \"&Registration!C108","v":" "},{"$f":"IF(Registration!E108=\"X\",\"Faculty\",\"\")","v":""},{"$f":"IF(Registration!#REF!=2,\"S\",IF(Registration!#REF!=3,\"M\",IF(Registration!#REF!=4,\"L\",IF(Registration!#REF!=5,\"XL\",IF(Registration!#REF!=6,\"XXL\",IF(Registration!#REF!=7,\"XXXL\",\"\"))))))","v":{"$error":"#REF!"}},{"$f":"IF(Registration!D108=\"\",\"\",Registration!D108)","v":""}]
[{"$f":"Registration!A109","v":1098},{"$f":"Registration!B109&\" \"&Registration!C109","v":" "},{"$f":"IF(Registration!E109=\"X\",\"Faculty\",\"\")","v":""},{"$f":"IF(Registration!#REF!=2,\"S\",IF(Registration!#REF!=3,\"M\",IF(Registration!#REF!=4,\"L\",IF(Registration!#REF!=5,\"XL\",IF(Registration!#REF!=6,\"XXL\",IF(Registration!#REF!=7,\"XXXL\",\"\"))))))","v":{"$error":"#REF!"}},{"$f":"IF(Registration!D109=\"\",\"\",Registration!D109)","v":""}]
[{"$f":"Registration!A110","v":1099},{"$f":"Registration!B110&\" \"&Registration!C110","v":" "},{"$f":"IF(Registration!E110=\"X\",\"Faculty\",\"\")","v":""},{"$f":"IF(Registration!#REF!=2,\"S\",IF(Registration!#REF!=3,\"M\",IF(Registration!#REF!=4,\"L\",IF(Registration!#REF!=5,\"XL\",IF(Registration!#REF!=6,\"XXL\",IF(Registration!#REF!=7,\"XXXL\",\"\"))))))","v":{"$error":"#REF!"}},{"$f":"IF(Registration!D110=\"\",\"\",Registration!D110)","v":""}]

{"sheet":"Event Registrations","index":4,"n_rows":85,"n_cols":2,"rows_kept":85,"cut":false,"hidden":true,"merged":[]}
[]
["2018 National Collegiate Landscape Competition Event Registration"]
[{"$f":"Registration!B5","v":"1000 Alamance Community College"}]
[]
["Event Registration"]
["Event Description","Participating Student"]
[{"$f":"Registration!J11","v":"3D Exterior Landscape Design"},{"$f":"IF(ISNA(VLOOKUP(Registration!O11,Registration!A12:F110,8,FALSE)),\"\",VLOOKUP(Registration!O11,Registration!A12:F110,8,FALSE))","v":""}]
[]
[{"$f":"Registration!J13","v":"Annual & Perennial Identification"},{"$f":"IF(ISNA(VLOOKUP(Registration!O13,Registration!A12:F110,8,FALSE)),\"\",VLOOKUP(Registration!O13,Registration!A12:F110,8,FALSE))","v":""}]
[{"$f":"Registration!J14","v":"Annual & Perennial Identification"},{"$f":"IF(ISNA(VLOOKUP(Registration!O14,Registration!A12:F110,8,FALSE)),\"\",VLOOKUP(Registration!O14,Registration!A12:F110,8,FALSE))","v":""}]
[]
[{"$f":"Registration!J16","v":"Arboriculture Techniques"},{"$f":"IF(ISNA(VLOOKUP(Registration!O16,Registration!A12:F110,8,FALSE)),\"\",VLOOKUP(Registration!O16,Registration!A12:F110,8,FALSE))","v":""}]
[{"$f":"Registration!J17","v":"Arboriculture Techniques"},{"$f":"IF(ISNA(VLOOKUP(Registration!O17,Registration!A12:F110,8,FALSE)),\"\",VLOOKUP(Registration!O17,Registration!A12:F110,8,FALSE))","v":""}]
[]
[{"$f":"Registration!J19","v":"Business Management"},{"$f":"IF(ISNA(VLOOKUP(Registration!O19,Registration!A12:F110,8,FALSE)),\"\",VLOOKUP(Registration!O19,Registration!A12:F110,8,FALSE))","v":""}]
[{"$f":"Registration!J20","v":"Business Management"},{"$f":"IF(ISNA(VLOOKUP(Registration!O20,Registration!A12:F110,8,FALSE)),\"\",VLOOKUP(Registration!O20,Registration!A12:F110,8,FALSE))","v":""}]
[]
[{"$f":"Registration!J22","v":"Compact Excavator Operation"},{"$f":"IF(ISNA(VLOOKUP(Registration!O22,Registration!A12:F110,8,FALSE)),\"\",VLOOKUP(Registration!O22,Registration!A12:F110,8,FALSE))","v":""}]
[]
[{"$f":"Registration!J24","v":"Compact Track/Skid Steer Loader Operation"},{"$f":"IF(ISNA(VLOOKUP(Registration!O24,Registration!A12:F110,8,FALSE)),\"\",VLOOKUP(Registration!O24,Registration!A12:F110,8,FALSE))","v":""}]
[]
[{"$f":"Registration!J26","v":"Computer Aided Landscape Design  "},{"$f":"IF(ISNA(VLOOKUP(Registration!O26,Registration!A12:F110,8,FALSE)),\"\",VLOOKUP(Registration!O26,Registration!A12:F110,8,FALSE))","v":""}]
[]
[{"$f":"Registration!J28","v":"Construction Cost Estimating "},{"$f":"IF(ISNA(VLOOKUP(Registration!O28,Registration!A12:F110,8,FALSE)),\"\",VLOOKUP(Registration!O28,Registration!A12:F110,8,FALSE))","v":""}]
[{"$f":"Registration!J29","v":"Construction Cost Estimating "},{"$f":"IF(ISNA(VLOOKUP(Registration!O29,Registration!A12:F110,8,FALSE)),\"\",VLOOKUP(Registration!O29,Registration!A12:F110,8,FALSE))","v":""}]
[]
[{"$f":"Registration!J31","v":"Employee Development"},{"$f":"IF(ISNA(VLOOKUP(Registration!O31,Registration!A12:F110,8,FALSE)),\"\",VLOOKUP(Registration!O31,Registration!A12:F110,8,FALSE))","v":""}]
[{"$f":"Registration!J32","v":"Employee Development "},{"$f":"IF(ISNA(VLOOKUP(Registration!O32,Registration!A12:F110,8,FALSE)),\"\",VLOOKUP(Registration!O32,Registration!A12:F110,8,FALSE))","v":""}]
[]
[{"$f":"Registration!J34","v":"Exterior Landscape Design"},{"$f":"IF(ISNA(VLOOKUP(Registration!O34,Registration!A12:F87,8,FALSE)),\"\",VLOOKUP(Registration!O34,Registration!A12:F87,8,FALSE))","v":""}]
[]
["Flower & Foliage Identification",{"$f":"IF(ISNA(VLOOKUP(Registration!O36,Registration!A12:F87,8,FALSE)),\"\",VLOOKUP(Registration!O36,Registration!A12:F87,8,FALSE))","v":""}]
["Flower & Foliage Identification",{"$f":"IF(ISNA(VLOOKUP(Registration!O37,Registration!A12:F87,8,FALSE)),\"\",VLOOKUP(Registration!O37,Registration!A12:F87,8,FALSE))","v":""}]
[]
[{"$f":"Registration!#REF!","v":{"$error":"#REF!"}},{"$f":"IF(ISNA(VLOOKUP(Registration!O39,Registration!A12:F87,8,FALSE)),\"\",VLOOKUP(Registration!O39,Registration!A12:F87,8,FALSE))","v":""}]
[{"$f":"Registration!#REF!","v":{"$error":"#REF!"}},{"$f":"IF(ISNA(VLOOKUP(Registration!O40,Registration!A12:F87,8,FALSE)),\"\",VLOOKUP(Registration!O40,Registration!A12:F87,8,FALSE))","v":""}]
[]
[{"$f":"Registration!J39","v":"Interior Landscape Design"},{"$f":"IF(ISNA(VLOOKUP(Registration!O42,Registration!A12:F87,8,FALSE)),\"\",VLOOKUP(Registration!O42,Registration!A12:F87,8,FALSE))","v":""}]
[]
[{"$f":"Registration!J41","v":"Interior Plant Identification"},{"$f":"IF(ISNA(VLOOKUP(Registration!O44,Registration!A12:F87,8,FALSE)),\"\",VLOOKUP(Registration!O44,Registration!A12:F87,8,FALSE))","v":""}]
[{"$f":"Registration!J42","v":"Interior Plant Identification"},{"$f":"IF(ISNA(VLOOKUP(Registration!O45,Registration!A12:F87,8,FALSE)),\"\",VLOOKUP(Registration!O45,Registration!A12:F87,8,FALSE))","v":""}]
[]
[{"$f":"Registration!J44","v":"Irrigation Assembly"},{"$f":"IF(ISNA(VLOOKUP(Registration!O47,Registration!A12:F87,8,FALSE)),\"\",VLOOKUP(Registration!O47,Registration!A12:F87,8,FALSE))","v":""}]
[{"$f":"Registration!J45","v":"Irrigation Assembly"},{"$f":"IF(ISNA(VLOOKUP(Registration!O48,Registration!A12:F87,8,FALSE)),\"\",VLOOKUP(Registration!O48,Registration!A12:F87,8,FALSE))","v":""}]
[]
[{"$f":"Registration!J47","v":"Irrigation Design"},{"$f":"IF(ISNA(VLOOKUP(Registration!O50,Registration!A12:F87,8,FALSE)),\"\",VLOOKUP(Registration!O50,Registration!A12:F87,8,FALSE))","v":""}]
[]
[{"$f":"Registration!J49","v":"Irrigation Troubleshooting"},{"$f":"IF(ISNA(VLOOKUP(Registration!O52,Registration!A12:F87,8,FALSE)),\"\",VLOOKUP(Registration!O52,Registration!A12:F87,8,FALSE))","v":""}]
[{"$f":"Registration!J50","v":"Irrigation Troubleshooting"},{"$f":"IF(ISNA(VLOOKUP(Registration!O53,Registration!A12:F87,8,FALSE)),\"\",VLOOKUP(Registration!O53,Registration!A12:F87,8,FALSE))","v":""}]
[]
[{"$f":"Registration!J52","v":"Landscape Lighting"},{"$f":"IF(ISNA(VLOOKUP(Registration!O55,Registration!A12:F87,8,FALSE)),\"\",VLOOKUP(Registration!O55,Registration!A12:F87,8,FALSE))","v":""}]
[]
[{"$f":"Registration!J54","v":"Landscape Maintenance Operations"},{"$f":"IF(ISNA(VLOOKUP(Registration!O57,Registration!A12:F87,8,FALSE)),\"\",VLOOKUP(Registration!O57,Registration!A12:F87,8,FALSE))","v":""}]
[{"$f":"Registration!J55","v":"Landscape Maintenance Operations"},{"$f":"IF(ISNA(VLOOKUP(Registration!O58,Registration!A12:F87,8,FALSE)),\"\",VLOOKUP(Registration!O58,Registration!A12:F87,8,FALSE))","v":""}]
[]
[{"$f":"Registration!J57","v":"Landscape Plant Installation"},{"$f":"IF(ISNA(VLOOKUP(Registration!O60,Registration!A12:F87,8,FALSE)),\"\",VLOOKUP(Registration!O60,Registration!A12:F87,8,FALSE))","v":""}]
[{"$f":"Registration!J58","v":"Landscape Plant Installation"},{"$f":"IF(ISNA(VLOOKUP(Registration!O61,Registration!A12:F87,8,FALSE)),\"\",VLOOKUP(Registration!O61,Registration!A12:F87,8,FALSE))","v":""}]
[{"$f":"Registration!J59","v":"Landscape Plant Installation"},{"$f":"IF(ISNA(VLOOKUP(Registration!O62,Registration!A12:F87,8,FALSE)),\"\",VLOOKUP(Registration!O62,Registration!A12:F87,8,FALSE))","v":""}]
[]
[{"$f":"Registration!J61","v":"Maintenance Cost Estimating"},{"$f":"IF(ISNA(VLOOKUP(Registration!O64,Registration!A12:F87,8,FALSE)),\"\",VLOOKUP(Registration!O64,Registration!A12:F87,8,FALSE))","v":""}]
[{"$f":"Registration!J62","v":"Maintenance Cost Estimating"},{"$f":"IF(ISNA(VLOOKUP(Registration!O65,Registration!A12:F87,8,FALSE)),\"\",VLOOKUP(Registration!O65,Registration!A12:F87,8,FALSE))","v":""}]
[]
["Mini Track Loader Operation",{"$f":"IF(ISNA(VLOOKUP(Registration!O67,Registration!A12:F87,8,FALSE)),\"\",VLOOKUP(Registration!O67,Registration!A12:F87,8,FALSE))","v":""}]
[]
["Plant Problem Diagnosis",{"$f":"IF(ISNA(VLOOKUP(Registration!O69,Registration!A13:F88,8,FALSE)),\"\",VLOOKUP(Registration!O69,Registration!A13:F88,8,FALSE))","v":""}]
["Plant Problem Diagnosis",{"$f":"IF(ISNA(VLOOKUP(Registration!O70,Registration!A12:F87,8,FALSE)),\"\",VLOOKUP(Registration!O70,Registration!A12:F87,8,FALSE))","v":""}]
[]
["Sales Presentation",{"$f":"IF(ISNA(VLOOKUP(Registration!O72,Registration!A12:F87,8,FALSE)),\"\",VLOOKUP(Registration!O72,Registration!A12:F87,8,FALSE))","v":""}]
[]
[{"$f":"Registration!J74","v":"Small Engine Repair"},{"$f":"IF(ISNA(VLOOKUP(Registration!O74,Registration!A12:F87,8,FALSE)),\"\",VLOOKUP(Registration!O74,Registration!A12:F87,8,FALSE))","v":""}]
[]
[{"$f":"Registration!J79","v":"Tractor Loader Backhoe Operation"},{"$f":"IF(ISNA(VLOOKUP(Registration!O76,Registration!A12:F87,8,FALSE)),\"\",VLOOKUP(Registration!O76,Registration!A12:F87,8,FALSE))","v":""}]
[]
[{"$f":"Registration!J81","v":"Truck & Trailer Operation"},{"$f":"IF(ISNA(VLOOKUP(Registration!O78,Registration!A12:F87,8,FALSE)),\"\",VLOOKUP(Registration!O78,Registration!A12:F87,8,FALSE))","v":""}]
[{"$f":"Registration!J82","v":"Truck & Trailer Operation"},{"$f":"IF(ISNA(VLOOKUP(Registration!O79,Registration!A12:F87,8,FALSE)),\"\",VLOOKUP(Registration!O79,Registration!A12:F87,8,FALSE))","v":""}]
[]
[{"$f":"Registration!J84","v":"Turf & Weed Identification"},{"$f":"IF(ISNA(VLOOKUP(Registration!O81,Registration!A12:F87,8,FALSE)),\"\",VLOOKUP(Registration!O81,Registration!A12:F87,8,FALSE))","v":""}]
[{"$f":"Registration!J85","v":"Turf & Weed Identification"},{"$f":"IF(ISNA(VLOOKUP(Registration!O82,Registration!A12:F87,8,FALSE)),\"\",VLOOKUP(Registration!O82,Registration!A12:F87,8,FALSE))","v":""}]
[]
[{"$f":"Registration!#REF!","v":{"$error":"#REF!"}},{"$f":"IF(ISNA(VLOOKUP(Registration!O84,Registration!A12:F87,8,FALSE)),\"\",VLOOKUP(Registration!O84,Registration!A12:F87,8,FALSE))","v":""}]
[{"$f":"Registration!#REF!","v":{"$error":"#REF!"}},{"$f":"IF(ISNA(VLOOKUP(Registration!O85,Registration!A12:F87,8,FALSE)),\"\",VLOOKUP(Registration!O85,Registration!A12:F87,8,FALSE))","v":""}]
[]
[{"$f":"Registration!J87","v":"Woody Ornamental Plant Identification"},{"$f":"IF(ISNA(VLOOKUP(Registration!O87,Registration!A12:F87,8,FALSE)),\"\",VLOOKUP(Registration!O87,Registration!A12:F87,8,FALSE))","v":""}]
[{"$f":"Registration!J88","v":"Woody Ornamental Plant Identification"},{"$f":"IF(ISNA(VLOOKUP(Registration!O88,Registration!A12:F87,8,FALSE)),\"\",VLOOKUP(Registration!O88,Registration!A12:F87,8,FALSE))","v":""}]
[null,{"$f":"IF(ISNA(VLOOKUP(Registration!O83,Registration!A12:F87,8,FALSE)),\"\",VLOOKUP(Registration!O83,Registration!A12:F87,8,FALSE))","v":""}]

{"sheet":"Workshop Registrations","index":5,"n_rows":107,"n_cols":2,"rows_kept":107,"cut":false,"hidden":true,"merged":[]}
[]
["2018 National Collegiate Landscape Competition Workshop Registration"]
[{"$f":"Registration!B5","v":"1000 Alamance Community College"}]
[]
["Workshop Registrations"]
["Workshop Registration","Participating Student"]
[{"$f":"IF(ISNA(VLOOKUP(Registration!#REF!,'For Office Use Only'!E2:F27,2,FALSE)),\"\",VLOOKUP(Registration!#REF!,'For Office Use Only'!E2:F27,2,FALSE))","v":{"$error":"#REF!"}},{"$f":"IF(ISNA(VLOOKUP(Registration!#REF!,Registration!A12:F110,8,FALSE)),\"\",VLOOKUP(Registration!#REF!,Registration!A12:F110,8,FALSE))","v":{"$error":"#REF!"}}]
[{"$f":"IF(ISNA(VLOOKUP(Registration!#REF!,'For Office Use Only'!E2:F27,2,FALSE)),\"\",VLOOKUP(Registration!#REF!,'For Office Use Only'!E2:F27,2,FALSE))","v":{"$error":"#REF!"}},{"$f":"IF(ISNA(VLOOKUP(Registration!#REF!,Registration!A12:F110,8,FALSE)),\"\",VLOOKUP(Registration!#REF!,Registration!A12:F110,8,FALSE))","v":{"$error":"#REF!"}}]
[{"$f":"IF(ISNA(VLOOKUP(Registration!#REF!,'For Office Use Only'!E2:F27,2,FALSE)),\"\",VLOOKUP(Registration!#REF!,'For Office Use Only'!E2:F27,2,FALSE))","v":{"$error":"#REF!"}},{"$f":"IF(ISNA(VLOOKUP(Registration!#REF!,Registration!A12:F110,8,FALSE)),\"\",VLOOKUP(Registration!#REF!,Registration!A12:F110,8,FALSE))","v":{"$error":"#REF!"}}]
[{"$f":"IF(ISNA(VLOOKUP(Registration!#REF!,'For Office Use Only'!E2:F27,2,FALSE)),\"\",VLOOKUP(Registration!#REF!,'For Office Use Only'!E2:F27,2,FALSE))","v":{"$error":"#REF!"}},{"$f":"IF(ISNA(VLOOKUP(Registration!#REF!,Registration!A12:F110,8,FALSE)),\"\",VLOOKUP(Registration!#REF!,Registration!A12:F110,8,FALSE))","v":{"$error":"#REF!"}}]
[{"$f":"IF(ISNA(VLOOKUP(Registration!#REF!,'For Office Use Only'!E2:F27,2,FALSE)),\"\",VLOOKUP(Registration!#REF!,'For Office Use Only'!E2:F27,2,FALSE))","v":{"$error":"#REF!"}},{"$f":"IF(ISNA(VLOOKUP(Registration!#REF!,Registration!A12:F110,8,FALSE)),\"\",VLOOKUP(Registration!#REF!,Registration!A12:F110,8,FALSE))","v":{"$error":"#REF!"}}]
[{"$f":"IF(ISNA(VLOOKUP(Registration!#REF!,'For Office Use Only'!E2:F27,2,FALSE)),\"\",VLOOKUP(Registration!#REF!,'For Office Use Only'!E2:F27,2,FALSE))","v":{"$error":"#REF!"}},{"$f":"IF(ISNA(VLOOKUP(Registration!#REF!,Registration!A12:F110,8,FALSE)),\"\",VLOOKUP(Registration!#REF!,Registration!A12:F110,8,FALSE))","v":{"$error":"#REF!"}}]
[{"$f":"IF(ISNA(VLOOKUP(Registration!#REF!,'For Office Use Only'!E2:F27,2,FALSE)),\"\",VLOOKUP(Registration!#REF!,'For Office Use Only'!E2:F27,2,FALSE))","v":{"$error":"#REF!"}},{"$f":"IF(ISNA(VLOOKUP(Registration!#REF!,Registration!A12:F110,8,FALSE)),\"\",VLOOKUP(Registration!#REF!,Registration!A12:F110,8,FALSE))","v":{"$error":"#REF!"}}]
[{"$f":"IF(ISNA(VLOOKUP(Registration!#REF!,'For Office Use Only'!E2:F27,2,FALSE)),\"\",VLOOKUP(Registration!#REF!,'For Office Use Only'!E2:F27,2,FALSE))","v":{"$error":"#REF!"}},{"$f":"IF(ISNA(VLOOKUP(Registration!#REF!,Registration!A12:F110,8,FALSE)),\"\",VLOOKUP(Registration!#REF!,Registration!A12:F110,8,FALSE))","v":{"$error":"#REF!"}}]
[{"$f":"IF(ISNA(VLOOKUP(Registration!#REF!,'For Office Use Only'!E2:F27,2,FALSE)),\"\",VLOOKUP(Registration!#REF!,'For Office Use Only'!E2:F27,2,FALSE))","v":{"$error":"#REF!"}},{"$f":"IF(ISNA(VLOOKUP(Registration!#REF!,Registration!A12:F110,8,FALSE)),\"\",VLOOKUP(Registration!#REF!,Registration!A12:F110,8,FALSE))","v":{"$error":"#REF!"}}]
[{"$f":"IF(ISNA(VLOOKUP(Registration!#REF!,'For Office Use Only'!E2:F27,2,FALSE)),\"\",VLOOKUP(Registration!#REF!,'For Office Use Only'!E2:F27,2,FALSE))","v":{"$error":"#REF!"}},{"$f":"IF(ISNA(VLOOKUP(Registration!#REF!,Registration!A12:F110,8,FALSE)),\"\",VLOOKUP(Registration!#REF!,Registration!A12:F110,8,FALSE))","v":{"$error":"#REF!"}}]
[{"$f":"IF(ISNA(VLOOKUP(Registration!#REF!,'For Office Use Only'!E2:F27,2,FALSE)),\"\",VLOOKUP(Registration!#REF!,'For Office Use Only'!E2:F27,2,FALSE))","v":{"$error":"#REF!"}},{"$f":"IF(ISNA(VLOOKUP(Registration!#REF!,Registration!A12:F110,8,FALSE)),\"\",VLOOKUP(Registration!#REF!,Registration!A12:F110,8,FALSE))","v":{"$error":"#REF!"}}]
[{"$f":"IF(ISNA(VLOOKUP(Registration!#REF!,'For Office Use Only'!E2:F27,2,FALSE)),\"\",VLOOKUP(Registration!#REF!,'For Office Use Only'!E2:F27,2,FALSE))","v":{"$error":"#REF!"}},{"$f":"IF(ISNA(VLOOKUP(Registration!#REF!,Registration!A12:F110,8,FALSE)),\"\",VLOOKUP(Registration!#REF!,Registration!A12:F110,8,FALSE))","v":{"$error":"#REF!"}}]
[{"$f":"IF(ISNA(VLOOKUP(Registration!#REF!,'For Office Use Only'!E2:F27,2,FALSE)),\"\",VLOOKUP(Registration!#REF!,'For Office Use Only'!E2:F27,2,FALSE))","v":{"$error":"#REF!"}},{"$f":"IF(ISNA(VLOOKUP(Registration!#REF!,Registration!A12:F110,8,FALSE)),\"\",VLOOKUP(Registration!#REF!,Registration!A12:F110,8,FALSE))","v":{"$error":"#REF!"}}]
[{"$f":"IF(ISNA(VLOOKUP(Registration!#REF!,'For Office Use Only'!E2:F27,2,FALSE)),\"\",VLOOKUP(Registration!#REF!,'For Office Use Only'!E2:F27,2,FALSE))","v":{"$error":"#REF!"}},{"$f":"IF(ISNA(VLOOKUP(Registration!#REF!,Registration!A12:F110,8,FALSE)),\"\",VLOOKUP(Registration!#REF!,Registration!A12:F110,8,FALSE))","v":{"$error":"#REF!"}}]
[{"$f":"IF(ISNA(VLOOKUP(Registration!#REF!,'For Office Use Only'!E2:F27,2,FALSE)),\"\",VLOOKUP(Registration!#REF!,'For Office Use Only'!E2:F27,2,FALSE))","v":{"$error":"#REF!"}},{"$f":"IF(ISNA(VLOOKUP(Registration!#REF!,Registration!A12:F110,8,FALSE)),\"\",VLOOKUP(Registration!#REF!,Registration!A12:F110,8,FALSE))","v":{"$error":"#REF!"}}]
[{"$f":"IF(ISNA(VLOOKUP(Registration!#REF!,'For Office Use Only'!E2:F27,2,FALSE)),\"\",VLOOKUP(Registration!#REF!,'For Office Use Only'!E2:F27,2,FALSE))","v":{"$error":"#REF!"}},{"$f":"IF(ISNA(VLOOKUP(Registration!#REF!,Registration!A12:F110,8,FALSE)),\"\",VLOOKUP(Registration!#REF!,Registration!A12:F110,8,FALSE))","v":{"$error":"#REF!"}}]
[{"$f":"IF(ISNA(VLOOKUP(Registration!#REF!,'For Office Use Only'!E2:F27,2,FALSE)),\"\",VLOOKUP(Registration!#REF!,'For Office Use Only'!E2:F27,2,FALSE))","v":{"$error":"#REF!"}},{"$f":"IF(ISNA(VLOOKUP(Registration!#REF!,Registration!A12:F110,8,FALSE)),\"\",VLOOKUP(Registration!#REF!,Registration!A12:F110,8,FALSE))","v":{"$error":"#REF!"}}]
[{"$f":"IF(ISNA(VLOOKUP(Registration!#REF!,'For Office Use Only'!E2:F27,2,FALSE)),\"\",VLOOKUP(Registration!#REF!,'For Office Use Only'!E2:F27,2,FALSE))","v":{"$error":"#REF!"}},{"$f":"IF(ISNA(VLOOKUP(Registration!#REF!,Registration!A12:F110,8,FALSE)),\"\",VLOOKUP(Registration!#REF!,Registration!A12:F110,8,FALSE))","v":{"$error":"#REF!"}}]
[{"$f":"IF(ISNA(VLOOKUP(Registration!#REF!,'For Office Use Only'!E2:F27,2,FALSE)),\"\",VLOOKUP(Registration!#REF!,'For Office Use Only'!E2:F27,2,FALSE))","v":{"$error":"#REF!"}},{"$f":"IF(ISNA(VLOOKUP(Registration!#REF!,Registration!A12:F110,8,FALSE)),\"\",VLOOKUP(Registration!#REF!,Registration!A12:F110,8,FALSE))","v":{"$error":"#REF!"}}]
[{"$f":"IF(ISNA(VLOOKUP(Registration!#REF!,'For Office Use Only'!E2:F27,2,FALSE)),\"\",VLOOKUP(Registration!#REF!,'For Office Use Only'!E2:F27,2,FALSE))","v":{"$error":"#REF!"}},{"$f":"IF(ISNA(VLOOKUP(Registration!#REF!,Registration!A12:F110,8,FALSE)),\"\",VLOOKUP(Registration!#REF!,Registration!A12:F110,8,FALSE))","v":{"$error":"#REF!"}}]
[{"$f":"IF(ISNA(VLOOKUP(Registration!#REF!,'For Office Use Only'!E2:F27,2,FALSE)),\"\",VLOOKUP(Registration!#REF!,'For Office Use Only'!E2:F27,2,FALSE))","v":{"$error":"#REF!"}},{"$f":"IF(ISNA(VLOOKUP(Registration!#REF!,Registration!A12:F110,8,FALSE)),\"\",VLOOKUP(Registration!#REF!,Registration!A12:F110,8,FALSE))","v":{"$error":"#REF!"}}]
[{"$f":"IF(ISNA(VLOOKUP(Registration!#REF!,'For Office Use Only'!E2:F27,2,FALSE)),\"\",VLOOKUP(Registration!#REF!,'For Office Use Only'!E2:F27,2,FALSE))","v":{"$error":"#REF!"}},{"$f":"IF(ISNA(VLOOKUP(Registration!#REF!,Registration!A12:F110,8,FALSE)),\"\",VLOOKUP(Registration!#REF!,Registration!A12:F110,8,FALSE))","v":{"$error":"#REF!"}}]
[{"$f":"IF(ISNA(VLOOKUP(Registration!#REF!,'For Office Use Only'!E1:F27,2,FALSE)),\"\",VLOOKUP(Registration!#REF!,'For Office Use Only'!E1:F27,2,FALSE))","v":{"$error":"#REF!"}},{"$f":"IF(ISNA(VLOOKUP(Registration!#REF!,Registration!A12:F110,8,FALSE)),\"\",VLOOKUP(Registration!#REF!,Registration!A12:F110,8,FALSE))","v":{"$error":"#REF!"}}]
[{"$f":"IF(ISNA(VLOOKUP(Registration!#REF!,'For Office Use Only'!E1:F27,2,FALSE)),\"\",VLOOKUP(Registration!#REF!,'For Office Use Only'!E1:F27,2,FALSE))","v":{"$error":"#REF!"}},{"$f":"IF(ISNA(VLOOKUP(Registration!#REF!,Registration!A12:F110,8,FALSE)),\"\",VLOOKUP(Registration!#REF!,Registration!A12:F110,8,FALSE))","v":{"$error":"#REF!"}}]
[{"$f":"IF(ISNA(VLOOKUP(Registration!#REF!,'For Office Use Only'!E1:F27,2,FALSE)),\"\",VLOOKUP(Registration!#REF!,'For Office Use Only'!E1:F27,2,FALSE))","v":{"$error":"#REF!"}},{"$f":"IF(ISNA(VLOOKUP(Registration!#REF!,Registration!A12:F110,8,FALSE)),\"\",VLOOKUP(Registration!#REF!,Registration!A12:F110,8,FALSE))","v":{"$error":"#REF!"}}]
[{"$f":"IF(ISNA(VLOOKUP(Registration!#REF!,'For Office Use Only'!E1:F27,2,FALSE)),\"\",VLOOKUP(Registration!#REF!,'For Office Use Only'!E1:F27,2,FALSE))","v":{"$error":"#REF!"}},{"$f":"IF(ISNA(VLOOKUP(Registration!#REF!,Registration!A12:F110,8,FALSE)),\"\",VLOOKUP(Registration!#REF!,Registration!A12:F110,8,FALSE))","v":{"$error":"#REF!"}}]
[{"$f":"IF(ISNA(VLOOKUP(Registration!#REF!,'For Office Use Only'!E1:F27,2,FALSE)),\"\",VLOOKUP(Registration!#REF!,'For Office Use Only'!E1:F27,2,FALSE))","v":{"$error":"#REF!"}},{"$f":"IF(ISNA(VLOOKUP(Registration!#REF!,Registration!A12:F110,8,FALSE)),\"\",VLOOKUP(Registration!#REF!,Registration!A12:F110,8,FALSE))","v":{"$error":"#REF!"}}]
[{"$f":"IF(ISNA(VLOOKUP(Registration!#REF!,'For Office Use Only'!E1:F27,2,FALSE)),\"\",VLOOKUP(Registration!#REF!,'For Office Use Only'!E1:F27,2,FALSE))","v":{"$error":"#REF!"}},{"$f":"IF(ISNA(VLOOKUP(Registration!#REF!,Registration!A12:F110,8,FALSE)),\"\",VLOOKUP(Registration!#REF!,Registration!A12:F110,8,FALSE))","v":{"$error":"#REF!"}}]
[{"$f":"IF(ISNA(VLOOKUP(Registration!#REF!,'For Office Use Only'!E1:F27,2,FALSE)),\"\",VLOOKUP(Registration!#REF!,'For Office Use Only'!E1:F27,2,FALSE))","v":{"$error":"#REF!"}},{"$f":"IF(ISNA(VLOOKUP(Registration!#REF!,Registration!A12:F110,8,FALSE)),\"\",VLOOKUP(Registration!#REF!,Registration!A12:F110,8,FALSE))","v":{"$error":"#REF!"}}]
[{"$f":"IF(ISNA(VLOOKUP(Registration!#REF!,'For Office Use Only'!E1:F27,2,FALSE)),\"\",VLOOKUP(Registration!#REF!,'For Office Use Only'!E1:F27,2,FALSE))","v":{"$error":"#REF!"}},{"$f":"IF(ISNA(VLOOKUP(Registration!#REF!,Registration!A12:F110,8,FALSE)),\"\",VLOOKUP(Registration!#REF!,Registration!A12:F110,8,FALSE))","v":{"$error":"#REF!"}}]
[{"$f":"IF(ISNA(VLOOKUP(Registration!#REF!,'For Office Use Only'!E1:F27,2,FALSE)),\"\",VLOOKUP(Registration!#REF!,'For Office Use Only'!E1:F27,2,FALSE))","v":{"$error":"#REF!"}},{"$f":"IF(ISNA(VLOOKUP(Registration!#REF!,Registration!A12:F110,8,FALSE)),\"\",VLOOKUP(Registration!#REF!,Registration!A12:F110,8,FALSE))","v":{"$error":"#REF!"}}]
[{"$f":"IF(ISNA(VLOOKUP(Registration!#REF!,'For Office Use Only'!E1:F27,2,FALSE)),\"\",VLOOKUP(Registration!#REF!,'For Office Use Only'!E1:F27,2,FALSE))","v":{"$error":"#REF!"}},{"$f":"IF(ISNA(VLOOKUP(Registration!#REF!,Registration!A12:F110,8,FALSE)),\"\",VLOOKUP(Registration!#REF!,Registration!A12:F110,8,FALSE))","v":{"$error":"#REF!"}}]
[{"$f":"IF(ISNA(VLOOKUP(Registration!#REF!,'For Office Use Only'!E1:F27,2,FALSE)),\"\",VLOOKUP(Registration!#REF!,'For Office Use Only'!E1:F27,2,FALSE))","v":{"$error":"#REF!"}},{"$f":"IF(ISNA(VLOOKUP(Registration!#REF!,Registration!A12:F110,8,FALSE)),\"\",VLOOKUP(Registration!#REF!,Registration!A12:F110,8,FALSE))","v":{"$error":"#REF!"}}]
[{"$f":"IF(ISNA(VLOOKUP(Registration!#REF!,'For Office Use Only'!E1:F27,2,FALSE)),\"\",VLOOKUP(Registration!#REF!,'For Office Use Only'!E1:F27,2,FALSE))","v":{"$error":"#REF!"}},{"$f":"IF(ISNA(VLOOKUP(Registration!#REF!,Registration!A12:F110,8,FALSE)),\"\",VLOOKUP(Registration!#REF!,Registration!A12:F110,8,FALSE))","v":{"$error":"#REF!"}}]
[{"$f":"IF(ISNA(VLOOKUP(Registration!#REF!,'For Office Use Only'!E1:F27,2,FALSE)),\"\",VLOOKUP(Registration!#REF!,'For Office Use Only'!E1:F27,2,FALSE))","v":{"$error":"#REF!"}},{"$f":"IF(ISNA(VLOOKUP(Registration!#REF!,Registration!A12:F110,8,FALSE)),\"\",VLOOKUP(Registration!#REF!,Registration!A12:F110,8,FALSE))","v":{"$error":"#REF!"}}]
[{"$f":"IF(ISNA(VLOOKUP(Registration!#REF!,'For Office Use Only'!E1:F27,2,FALSE)),\"\",VLOOKUP(Registration!#REF!,'For Office Use Only'!E1:F27,2,FALSE))","v":{"$error":"#REF!"}},{"$f":"IF(ISNA(VLOOKUP(Registration!#REF!,Registration!A12:F110,8,FALSE)),\"\",VLOOKUP(Registration!#REF!,Registration!A12:F110,8,FALSE))","v":{"$error":"#REF!"}}]
[{"$f":"IF(ISNA(VLOOKUP(Registration!#REF!,'For Office Use Only'!E1:F27,2,FALSE)),\"\",VLOOKUP(Registration!#REF!,'For Office Use Only'!E1:F27,2,FALSE))","v":{"$error":"#REF!"}},{"$f":"IF(ISNA(VLOOKUP(Registration!#REF!,Registration!A12:F110,8,FALSE)),\"\",VLOOKUP(Registration!#REF!,Registration!A12:F110,8,FALSE))","v":{"$error":"#REF!"}}]
[{"$f":"IF(ISNA(VLOOKUP(Registration!#REF!,'For Office Use Only'!E1:F27,2,FALSE)),\"\",VLOOKUP(Registration!#REF!,'For Office Use Only'!E1:F27,2,FALSE))","v":{"$error":"#REF!"}},{"$f":"IF(ISNA(VLOOKUP(Registration!#REF!,Registration!A12:F110,8,FALSE)),\"\",VLOOKUP(Registration!#REF!,Registration!A12:F110,8,FALSE))","v":{"$error":"#REF!"}}]
[{"$f":"IF(ISNA(VLOOKUP(Registration!#REF!,'For Office Use Only'!E1:F27,2,FALSE)),\"\",VLOOKUP(Registration!#REF!,'For Office Use Only'!E1:F27,2,FALSE))","v":{"$error":"#REF!"}},{"$f":"IF(ISNA(VLOOKUP(Registration!#REF!,Registration!A12:F110,8,FALSE)),\"\",VLOOKUP(Registration!#REF!,Registration!A12:F110,8,FALSE))","v":{"$error":"#REF!"}}]
[{"$f":"IF(ISNA(VLOOKUP(Registration!#REF!,'For Office Use Only'!E1:F27,2,FALSE)),\"\",VLOOKUP(Registration!#REF!,'For Office Use Only'!E1:F27,2,FALSE))","v":{"$error":"#REF!"}},{"$f":"IF(ISNA(VLOOKUP(Registration!#REF!,Registration!A12:F110,8,FALSE)),\"\",VLOOKUP(Registration!#REF!,Registration!A12:F110,8,FALSE))","v":{"$error":"#REF!"}}]
[{"$f":"IF(ISNA(VLOOKUP(Registration!#REF!,'For Office Use Only'!E1:F27,2,FALSE)),\"\",VLOOKUP(Registration!#REF!,'For Office Use Only'!E1:F27,2,FALSE))","v":{"$error":"#REF!"}},{"$f":"IF(ISNA(VLOOKUP(Registration!#REF!,Registration!A12:F110,8,FALSE)),\"\",VLOOKUP(Registration!#REF!,Registration!A12:F110,8,FALSE))","v":{"$error":"#REF!"}}]
[{"$f":"IF(ISNA(VLOOKUP(Registration!#REF!,'For Office Use Only'!E1:F27,2,FALSE)),\"\",VLOOKUP(Registration!#REF!,'For Office Use Only'!E1:F27,2,FALSE))","v":{"$error":"#REF!"}},{"$f":"IF(ISNA(VLOOKUP(Registration!#REF!,Registration!A12:F110,8,FALSE)),\"\",VLOOKUP(Registration!#REF!,Registration!A12:F110,8,FALSE))","v":{"$error":"#REF!"}}]
[{"$f":"IF(ISNA(VLOOKUP(Registration!#REF!,'For Office Use Only'!E1:F27,2,FALSE)),\"\",VLOOKUP(Registration!#REF!,'For Office Use Only'!E1:F27,2,FALSE))","v":{"$error":"#REF!"}},{"$f":"IF(ISNA(VLOOKUP(Registration!#REF!,Registration!A12:F110,8,FALSE)),\"\",VLOOKUP(Registration!#REF!,Registration!A12:F110,8,FALSE))","v":{"$error":"#REF!"}}]
[{"$f":"IF(ISNA(VLOOKUP(Registration!#REF!,'For Office Use Only'!E1:F27,2,FALSE)),\"\",VLOOKUP(Registration!#REF!,'For Office Use Only'!E1:F27,2,FALSE))","v":{"$error":"#REF!"}},{"$f":"IF(ISNA(VLOOKUP(Registration!#REF!,Registration!A12:F110,8,FALSE)),\"\",VLOOKUP(Registration!#REF!,Registration!A12:F110,8,FALSE))","v":{"$error":"#REF!"}}]
[{"$f":"IF(ISNA(VLOOKUP(Registration!#REF!,'For Office Use Only'!E1:F27,2,FALSE)),\"\",VLOOKUP(Registration!#REF!,'For Office Use Only'!E1:F27,2,FALSE))","v":{"$error":"#REF!"}},{"$f":"IF(ISNA(VLOOKUP(Registration!#REF!,Registration!A12:F110,8,FALSE)),\"\",VLOOKUP(Registration!#REF!,Registration!A12:F110,8,FALSE))","v":{"$error":"#REF!"}}]
[{"$f":"IF(ISNA(VLOOKUP(Registration!#REF!,'For Office Use Only'!E1:F27,2,FALSE)),\"\",VLOOKUP(Registration!#REF!,'For Office Use Only'!E1:F27,2,FALSE))","v":{"$error":"#REF!"}},{"$f":"IF(ISNA(VLOOKUP(Registration!#REF!,Registration!A12:F110,8,FALSE)),\"\",VLOOKUP(Registration!#REF!,Registration!A12:F110,8,FALSE))","v":{"$error":"#REF!"}}]
[{"$f":"IF(ISNA(VLOOKUP(Registration!#REF!,'For Office Use Only'!E1:F27,2,FALSE)),\"\",VLOOKUP(Registration!#REF!,'For Office Use Only'!E1:F27,2,FALSE))","v":{"$error":"#REF!"}},{"$f":"IF(ISNA(VLOOKUP(Registration!#REF!,Registration!A12:F110,8,FALSE)),\"\",VLOOKUP(Registration!#REF!,Registration!A12:F110,8,FALSE))","v":{"$error":"#REF!"}}]
[{"$f":"IF(ISNA(VLOOKUP(Registration!#REF!,'For Office Use Only'!E1:F27,2,FALSE)),\"\",VLOOKUP(Registration!#REF!,'For Office Use Only'!E1:F27,2,FALSE))","v":{"$error":"#REF!"}},{"$f":"IF(ISNA(VLOOKUP(Registration!#REF!,Registration!A12:F110,8,FALSE)),\"\",VLOOKUP(Registration!#REF!,Registration!A12:F110,8,FALSE))","v":{"$error":"#REF!"}}]
[{"$f":"IF(ISNA(VLOOKUP(Registration!#REF!,'For Office Use Only'!E1:F27,2,FALSE)),\"\",VLOOKUP(Registration!#REF!,'For Office Use Only'!E1:F27,2,FALSE))","v":{"$error":"#REF!"}},{"$f":"IF(ISNA(VLOOKUP(Registration!#REF!,Registration!A12:F110,8,FALSE)),\"\",VLOOKUP(Registration!#REF!,Registration!A12:F110,8,FALSE))","v":{"$error":"#REF!"}}]
[{"$f":"IF(ISNA(VLOOKUP(Registration!#REF!,'For Office Use Only'!E1:F27,2,FALSE)),\"\",VLOOKUP(Registration!#REF!,'For Office Use Only'!E1:F27,2,FALSE))","v":{"$error":"#REF!"}},{"$f":"IF(ISNA(VLOOKUP(Registration!#REF!,Registration!A12:F110,8,FALSE)),\"\",VLOOKUP(Registration!#REF!,Registration!A12:F110,8,FALSE))","v":{"$error":"#REF!"}}]
[{"$f":"IF(ISNA(VLOOKUP(Registration!#REF!,'For Office Use Only'!E1:F27,2,FALSE)),\"\",VLOOKUP(Registration!#REF!,'For Office Use Only'!E1:F27,2,FALSE))","v":{"$error":"#REF!"}},{"$f":"IF(ISNA(VLOOKUP(Registration!#REF!,Registration!A12:F110,8,FALSE)),\"\",VLOOKUP(Registration!#REF!,Registration!A12:F110,8,FALSE))","v":{"$error":"#REF!"}}]
[{"$f":"IF(ISNA(VLOOKUP(Registration!#REF!,'For Office Use Only'!E1:F27,2,FALSE)),\"\",VLOOKUP(Registration!#REF!,'For Office Use Only'!E1:F27,2,FALSE))","v":{"$error":"#REF!"}},{"$f":"IF(ISNA(VLOOKUP(Registration!#REF!,Registration!A12:F110,8,FALSE)),\"\",VLOOKUP(Registration!#REF!,Registration!A12:F110,8,FALSE))","v":{"$error":"#REF!"}}]
[{"$f":"IF(ISNA(VLOOKUP(Registration!#REF!,'For Office Use Only'!E1:F27,2,FALSE)),\"\",VLOOKUP(Registration!#REF!,'For Office Use Only'!E1:F27,2,FALSE))","v":{"$error":"#REF!"}},{"$f":"IF(ISNA(VLOOKUP(Registration!#REF!,Registration!A12:F110,8,FALSE)),\"\",VLOOKUP(Registration!#REF!,Registration!A12:F110,8,FALSE))","v":{"$error":"#REF!"}}]
[{"$f":"IF(ISNA(VLOOKUP(Registration!#REF!,'For Office Use Only'!E1:F27,2,FALSE)),\"\",VLOOKUP(Registration!#REF!,'For Office Use Only'!E1:F27,2,FALSE))","v":{"$error":"#REF!"}},{"$f":"IF(ISNA(VLOOKUP(Registration!#REF!,Registration!A12:F110,8,FALSE)),\"\",VLOOKUP(Registration!#REF!,Registration!A12:F110,8,FALSE))","v":{"$error":"#REF!"}}]
[{"$f":"IF(ISNA(VLOOKUP(Registration!#REF!,'For Office Use Only'!E1:F27,2,FALSE)),\"\",VLOOKUP(Registration!#REF!,'For Office Use Only'!E1:F27,2,FALSE))","v":{"$error":"#REF!"}},{"$f":"IF(ISNA(VLOOKUP(Registration!#REF!,Registration!A12:F110,8,FALSE)),\"\",VLOOKUP(Registration!#REF!,Registration!A12:F110,8,FALSE))","v":{"$error":"#REF!"}}]
[{"$f":"IF(ISNA(VLOOKUP(Registration!#REF!,'For Office Use Only'!E1:F27,2,FALSE)),\"\",VLOOKUP(Registration!#REF!,'For Office Use Only'!E1:F27,2,FALSE))","v":{"$error":"#REF!"}},{"$f":"IF(ISNA(VLOOKUP(Registration!#REF!,Registration!A12:F110,8,FALSE)),\"\",VLOOKUP(Registration!#REF!,Registration!A12:F110,8,FALSE))","v":{"$error":"#REF!"}}]
[{"$f":"IF(ISNA(VLOOKUP(Registration!#REF!,'For Office Use Only'!E1:F27,2,FALSE)),\"\",VLOOKUP(Registration!#REF!,'For Office Use Only'!E1:F27,2,FALSE))","v":{"$error":"#REF!"}},{"$f":"IF(ISNA(VLOOKUP(Registration!#REF!,Registration!A12:F110,8,FALSE)),\"\",VLOOKUP(Registration!#REF!,Registration!A12:F110,8,FALSE))","v":{"$error":"#REF!"}}]
[{"$f":"IF(ISNA(VLOOKUP(Registration!#REF!,'For Office Use Only'!E1:F27,2,FALSE)),\"\",VLOOKUP(Registration!#REF!,'For Office Use Only'!E1:F27,2,FALSE))","v":{"$error":"#REF!"}},{"$f":"IF(ISNA(VLOOKUP(Registration!#REF!,Registration!A12:F110,8,FALSE)),\"\",VLOOKUP(Registration!#REF!,Registration!A12:F110,8,FALSE))","v":{"$error":"#REF!"}}]
[{"$f":"IF(ISNA(VLOOKUP(Registration!#REF!,'For Office Use Only'!E1:F27,2,FALSE)),\"\",VLOOKUP(Registration!#REF!,'For Office Use Only'!E1:F27,2,FALSE))","v":{"$error":"#REF!"}},{"$f":"IF(ISNA(VLOOKUP(Registration!#REF!,Registration!A12:F110,8,FALSE)),\"\",VLOOKUP(Registration!#REF!,Registration!A12:F110,8,FALSE))","v":{"$error":"#REF!"}}]
[{"$f":"IF(ISNA(VLOOKUP(Registration!#REF!,'For Office Use Only'!E1:F27,2,FALSE)),\"\",VLOOKUP(Registration!#REF!,'For Office Use Only'!E1:F27,2,FALSE))","v":{"$error":"#REF!"}},{"$f":"IF(ISNA(VLOOKUP(Registration!#REF!,Registration!A12:F110,8,FALSE)),\"\",VLOOKUP(Registration!#REF!,Registration!A12:F110,8,FALSE))","v":{"$error":"#REF!"}}]
[{"$f":"IF(ISNA(VLOOKUP(Registration!#REF!,'For Office Use Only'!E1:F27,2,FALSE)),\"\",VLOOKUP(Registration!#REF!,'For Office Use Only'!E1:F27,2,FALSE))","v":{"$error":"#REF!"}},{"$f":"IF(ISNA(VLOOKUP(Registration!#REF!,Registration!A12:F110,8,FALSE)),\"\",VLOOKUP(Registration!#REF!,Registration!A12:F110,8,FALSE))","v":{"$error":"#REF!"}}]
[{"$f":"IF(ISNA(VLOOKUP(Registration!#REF!,'For Office Use Only'!E1:F27,2,FALSE)),\"\",VLOOKUP(Registration!#REF!,'For Office Use Only'!E1:F27,2,FALSE))","v":{"$error":"#REF!"}},{"$f":"IF(ISNA(VLOOKUP(Registration!#REF!,Registration!A12:F110,8,FALSE)),\"\",VLOOKUP(Registration!#REF!,Registration!A12:F110,8,FALSE))","v":{"$error":"#REF!"}}]
[{"$f":"IF(ISNA(VLOOKUP(Registration!#REF!,'For Office Use Only'!E1:F27,2,FALSE)),\"\",VLOOKUP(Registration!#REF!,'For Office Use Only'!E1:F27,2,FALSE))","v":{"$error":"#REF!"}},{"$f":"IF(ISNA(VLOOKUP(Registration!#REF!,Registration!A12:F110,8,FALSE)),\"\",VLOOKUP(Registration!#REF!,Registration!A12:F110,8,FALSE))","v":{"$error":"#REF!"}}]
[{"$f":"IF(ISNA(VLOOKUP(Registration!#REF!,'For Office Use Only'!E1:F27,2,FALSE)),\"\",VLOOKUP(Registration!#REF!,'For Office Use Only'!E1:F27,2,FALSE))","v":{"$error":"#REF!"}},{"$f":"IF(ISNA(VLOOKUP(Registration!#REF!,Registration!A12:F110,8,FALSE)),\"\",VLOOKUP(Registration!#REF!,Registration!A12:F110,8,FALSE))","v":{"$error":"#REF!"}}]
[{"$f":"IF(ISNA(VLOOKUP(Registration!#REF!,'For Office Use Only'!E1:F27,2,FALSE)),\"\",VLOOKUP(Registration!#REF!,'For Office Use Only'!E1:F27,2,FALSE))","v":{"$error":"#REF!"}},{"$f":"IF(ISNA(VLOOKUP(Registration!#REF!,Registration!A12:F110,8,FALSE)),\"\",VLOOKUP(Registration!#REF!,Registration!A12:F110,8,FALSE))","v":{"$error":"#REF!"}}]
[{"$f":"IF(ISNA(VLOOKUP(Registration!#REF!,'For Office Use Only'!E1:F27,2,FALSE)),\"\",VLOOKUP(Registration!#REF!,'For Office Use Only'!E1:F27,2,FALSE))","v":{"$error":"#REF!"}},{"$f":"IF(ISNA(VLOOKUP(Registration!#REF!,Registration!A12:F110,8,FALSE)),\"\",VLOOKUP(Registration!#REF!,Registration!A12:F110,8,FALSE))","v":{"$error":"#REF!"}}]
[{"$f":"IF(ISNA(VLOOKUP(Registration!#REF!,'For Office Use Only'!E1:F27,2,FALSE)),\"\",VLOOKUP(Registration!#REF!,'For Office Use Only'!E1:F27,2,FALSE))","v":{"$error":"#REF!"}},{"$f":"IF(ISNA(VLOOKUP(Registration!#REF!,Registration!A12:F110,8,FALSE)),\"\",VLOOKUP(Registration!#REF!,Registration!A12:F110,8,FALSE))","v":{"$error":"#REF!"}}]
[{"$f":"IF(ISNA(VLOOKUP(Registration!#REF!,'For Office Use Only'!E1:F27,2,FALSE)),\"\",VLOOKUP(Registration!#REF!,'For Office Use Only'!E1:F27,2,FALSE))","v":{"$error":"#REF!"}},{"$f":"IF(ISNA(VLOOKUP(Registration!#REF!,Registration!A12:F110,8,FALSE)),\"\",VLOOKUP(Registration!#REF!,Registration!A12:F110,8,FALSE))","v":{"$error":"#REF!"}}]
[{"$f":"IF(ISNA(VLOOKUP(Registration!#REF!,'For Office Use Only'!E1:F27,2,FALSE)),\"\",VLOOKUP(Registration!#REF!,'For Office Use Only'!E1:F27,2,FALSE))","v":{"$error":"#REF!"}},{"$f":"IF(ISNA(VLOOKUP(Registration!#REF!,Registration!A12:F110,8,FALSE)),\"\",VLOOKUP(Registration!#REF!,Registration!A12:F110,8,FALSE))","v":{"$error":"#REF!"}}]
[{"$f":"IF(ISNA(VLOOKUP(Registration!#REF!,'For Office Use Only'!E1:F27,2,FALSE)),\"\",VLOOKUP(Registration!#REF!,'For Office Use Only'!E1:F27,2,FALSE))","v":{"$error":"#REF!"}},{"$f":"IF(ISNA(VLOOKUP(Registration!#REF!,Registration!A12:F110,8,FALSE)),\"\",VLOOKUP(Registration!#REF!,Registration!A12:F110,8,FALSE))","v":{"$error":"#REF!"}}]
[{"$f":"IF(ISNA(VLOOKUP(Registration!#REF!,'For Office Use Only'!E1:F27,2,FALSE)),\"\",VLOOKUP(Registration!#REF!,'For Office Use Only'!E1:F27,2,FALSE))","v":{"$error":"#REF!"}},{"$f":"IF(ISNA(VLOOKUP(Registration!#REF!,Registration!A12:F110,8,FALSE)),\"\",VLOOKUP(Registration!#REF!,Registration!A12:F110,8,FALSE))","v":{"$error":"#REF!"}}]
[{"$f":"IF(ISNA(VLOOKUP(Registration!#REF!,'For Office Use Only'!E1:F27,2,FALSE)),\"\",VLOOKUP(Registration!#REF!,'For Office Use Only'!E1:F27,2,FALSE))","v":{"$error":"#REF!"}},{"$f":"IF(ISNA(VLOOKUP(Registration!#REF!,Registration!A12:F110,8,FALSE)),\"\",VLOOKUP(Registration!#REF!,Registration!A12:F110,8,FALSE))","v":{"$error":"#REF!"}}]
[{"$f":"IF(ISNA(VLOOKUP(Registration!#REF!,'For Office Use Only'!E1:F27,2,FALSE)),\"\",VLOOKUP(Registration!#REF!,'For Office Use Only'!E1:F27,2,FALSE))","v":{"$error":"#REF!"}},{"$f":"IF(ISNA(VLOOKUP(Registration!#REF!,Registration!A12:F110,8,FALSE)),\"\",VLOOKUP(Registration!#REF!,Registration!A12:F110,8,FALSE))","v":{"$error":"#REF!"}}]
[{"$f":"IF(ISNA(VLOOKUP(Registration!#REF!,'For Office Use Only'!E1:F27,2,FALSE)),\"\",VLOOKUP(Registration!#REF!,'For Office Use Only'!E1:F27,2,FALSE))","v":{"$error":"#REF!"}},{"$f":"IF(ISNA(VLOOKUP(Registration!#REF!,Registration!A12:F110,8,FALSE)),\"\",VLOOKUP(Registration!#REF!,Registration!A12:F110,8,FALSE))","v":{"$error":"#REF!"}}]
[{"$f":"IF(ISNA(VLOOKUP(Registration!#REF!,'For Office Use Only'!E1:F27,2,FALSE)),\"\",VLOOKUP(Registration!#REF!,'For Office Use Only'!E1:F27,2,FALSE))","v":{"$error":"#REF!"}},{"$f":"IF(ISNA(VLOOKUP(Registration!#REF!,Registration!A12:F110,8,FALSE)),\"\",VLOOKUP(Registration!#REF!,Registration!A12:F110,8,FALSE))","v":{"$error":"#REF!"}}]
[{"$f":"IF(ISNA(VLOOKUP(Registration!#REF!,'For Office Use Only'!E1:F27,2,FALSE)),\"\",VLOOKUP(Registration!#REF!,'For Office Use Only'!E1:F27,2,FALSE))","v":{"$error":"#REF!"}},{"$f":"IF(ISNA(VLOOKUP(Registration!#REF!,Registration!A12:F110,8,FALSE)),\"\",VLOOKUP(Registration!#REF!,Registration!A12:F110,8,FALSE))","v":{"$error":"#REF!"}}]
[{"$f":"IF(ISNA(VLOOKUP(Registration!#REF!,'For Office Use Only'!E1:F27,2,FALSE)),\"\",VLOOKUP(Registration!#REF!,'For Office Use Only'!E1:F27,2,FALSE))","v":{"$error":"#REF!"}},{"$f":"IF(ISNA(VLOOKUP(Registration!#REF!,Registration!A12:F110,8,FALSE)),\"\",VLOOKUP(Registration!#REF!,Registration!A12:F110,8,FALSE))","v":{"$error":"#REF!"}}]
[{"$f":"IF(ISNA(VLOOKUP(Registration!#REF!,'For Office Use Only'!E1:F27,2,FALSE)),\"\",VLOOKUP(Registration!#REF!,'For Office Use Only'!E1:F27,2,FALSE))","v":{"$error":"#REF!"}},{"$f":"IF(ISNA(VLOOKUP(Registration!#REF!,Registration!A12:F110,8,FALSE)),\"\",VLOOKUP(Registration!#REF!,Registration!A12:F110,8,FALSE))","v":{"$error":"#REF!"}}]
[{"$f":"IF(ISNA(VLOOKUP(Registration!#REF!,'For Office Use Only'!E1:F27,2,FALSE)),\"\",VLOOKUP(Registration!#REF!,'For Office Use Only'!E1:F27,2,FALSE))","v":{"$error":"#REF!"}},{"$f":"IF(ISNA(VLOOKUP(Registration!#REF!,Registration!A12:F110,8,FALSE)),\"\",VLOOKUP(Registration!#REF!,Registration!A12:F110,8,FALSE))","v":{"$error":"#REF!"}}]
[{"$f":"IF(ISNA(VLOOKUP(Registration!#REF!,'For Office Use Only'!E1:F27,2,FALSE)),\"\",VLOOKUP(Registration!#REF!,'For Office Use Only'!E1:F27,2,FALSE))","v":{"$error":"#REF!"}},{"$f":"IF(ISNA(VLOOKUP(Registration!#REF!,Registration!A12:F110,8,FALSE)),\"\",VLOOKUP(Registration!#REF!,Registration!A12:F110,8,FALSE))","v":{"$error":"#REF!"}}]
[{"$f":"IF(ISNA(VLOOKUP(Registration!#REF!,'For Office Use Only'!E1:F27,2,FALSE)),\"\",VLOOKUP(Registration!#REF!,'For Office Use Only'!E1:F27,2,FALSE))","v":{"$error":"#REF!"}},{"$f":"IF(ISNA(VLOOKUP(Registration!#REF!,Registration!A12:F110,8,FALSE)),\"\",VLOOKUP(Registration!#REF!,Registration!A12:F110,8,FALSE))","v":{"$error":"#REF!"}}]
[{"$f":"IF(ISNA(VLOOKUP(Registration!#REF!,'For Office Use Only'!E1:F27,2,FALSE)),\"\",VLOOKUP(Registration!#REF!,'For Office Use Only'!E1:F27,2,FALSE))","v":{"$error":"#REF!"}},{"$f":"IF(ISNA(VLOOKUP(Registration!#REF!,Registration!A12:F110,8,FALSE)),\"\",VLOOKUP(Registration!#REF!,Registration!A12:F110,8,FALSE))","v":{"$error":"#REF!"}}]
[{"$f":"IF(ISNA(VLOOKUP(Registration!#REF!,'For Office Use Only'!E1:F27,2,FALSE)),\"\",VLOOKUP(Registration!#REF!,'For Office Use Only'!E1:F27,2,FALSE))","v":{"$error":"#REF!"}},{"$f":"IF(ISNA(VLOOKUP(Registration!#REF!,Registration!A12:F110,8,FALSE)),\"\",VLOOKUP(Registration!#REF!,Registration!A12:F110,8,FALSE))","v":{"$error":"#REF!"}}]
[{"$f":"IF(ISNA(VLOOKUP(Registration!#REF!,'For Office Use Only'!E1:F27,2,FALSE)),\"\",VLOOKUP(Registration!#REF!,'For Office Use Only'!E1:F27,2,FALSE))","v":{"$error":"#REF!"}},{"$f":"IF(ISNA(VLOOKUP(Registration!#REF!,Registration!A12:F110,8,FALSE)),\"\",VLOOKUP(Registration!#REF!,Registration!A12:F110,8,FALSE))","v":{"$error":"#REF!"}}]
[{"$f":"IF(ISNA(VLOOKUP(Registration!#REF!,'For Office Use Only'!E1:F27,2,FALSE)),\"\",VLOOKUP(Registration!#REF!,'For Office Use Only'!E1:F27,2,FALSE))","v":{"$error":"#REF!"}},{"$f":"IF(ISNA(VLOOKUP(Registration!#REF!,Registration!A12:F110,8,FALSE)),\"\",VLOOKUP(Registration!#REF!,Registration!A12:F110,8,FALSE))","v":{"$error":"#REF!"}}]
[{"$f":"IF(ISNA(VLOOKUP(Registration!#REF!,'For Office Use Only'!E1:F27,2,FALSE)),\"\",VLOOKUP(Registration!#REF!,'For Office Use Only'!E1:F27,2,FALSE))","v":{"$error":"#REF!"}},{"$f":"IF(ISNA(VLOOKUP(Registration!#REF!,Registration!A12:F110,8,FALSE)),\"\",VLOOKUP(Registration!#REF!,Registration!A12:F110,8,FALSE))","v":{"$error":"#REF!"}}]
[{"$f":"IF(ISNA(VLOOKUP(Registration!#REF!,'For Office Use Only'!E1:F27,2,FALSE)),\"\",VLOOKUP(Registration!#REF!,'For Office Use Only'!E1:F27,2,FALSE))","v":{"$error":"#REF!"}},{"$f":"IF(ISNA(VLOOKUP(Registration!#REF!,Registration!A12:F110,8,FALSE)),\"\",VLOOKUP(Registration!#REF!,Registration!A12:F110,8,FALSE))","v":{"$error":"#REF!"}}]
[{"$f":"IF(ISNA(VLOOKUP(Registration!#REF!,'For Office Use Only'!E2:F27,2,FALSE)),\"\",VLOOKUP(Registration!#REF!,'For Office Use Only'!E2:F27,2,FALSE))","v":{"$error":"#REF!"}},{"$f":"IF(ISNA(VLOOKUP(Registration!#REF!,Registration!A12:F110,8,FALSE)),\"\",VLOOKUP(Registration!#REF!,Registration!A12:F110,8,FALSE))","v":{"$error":"#REF!"}}]
[{"$f":"IF(ISNA(VLOOKUP(Registration!#REF!,'For Office Use Only'!E1:F27,2,FALSE)),\"\",VLOOKUP(Registration!#REF!,'For Office Use Only'!E1:F27,2,FALSE))","v":{"$error":"#REF!"}},{"$f":"IF(ISNA(VLOOKUP(Registration!#REF!,Registration!A12:F110,8,FALSE)),\"\",VLOOKUP(Registration!#REF!,Registration!A12:F110,8,FALSE))","v":{"$error":"#REF!"}}]
[{"$f":"IF(ISNA(VLOOKUP(Registration!#REF!,'For Office Use Only'!E1:F27,2,FALSE)),\"\",VLOOKUP(Registration!#REF!,'For Office Use Only'!E1:F27,2,FALSE))","v":{"$error":"#REF!"}},{"$f":"IF(ISNA(VLOOKUP(Registration!#REF!,Registration!A12:F110,8,FALSE)),\"\",VLOOKUP(Registration!#REF!,Registration!A12:F110,8,FALSE))","v":{"$error":"#REF!"}}]
[{"$f":"IF(ISNA(VLOOKUP(Registration!#REF!,'For Office Use Only'!E1:F27,2,FALSE)),\"\",VLOOKUP(Registration!#REF!,'For Office Use Only'!E1:F27,2,FALSE))","v":{"$error":"#REF!"}},{"$f":"IF(ISNA(VLOOKUP(Registration!#REF!,Registration!A12:F110,8,FALSE)),\"\",VLOOKUP(Registration!#REF!,Registration!A12:F110,8,FALSE))","v":{"$error":"#REF!"}}]
[{"$f":"IF(ISNA(VLOOKUP(Registration!#REF!,'For Office Use Only'!E1:F27,2,FALSE)),\"\",VLOOKUP(Registration!#REF!,'For Office Use Only'!E1:F27,2,FALSE))","v":{"$error":"#REF!"}},{"$f":"IF(ISNA(VLOOKUP(Registration!#REF!,Registration!A12:F110,8,FALSE)),\"\",VLOOKUP(Registration!#REF!,Registration!A12:F110,8,FALSE))","v":{"$error":"#REF!"}}]
[{"$f":"IF(ISNA(VLOOKUP(Registration!#REF!,'For Office Use Only'!E1:F27,2,FALSE)),\"\",VLOOKUP(Registration!#REF!,'For Office Use Only'!E1:F27,2,FALSE))","v":{"$error":"#REF!"}},{"$f":"IF(ISNA(VLOOKUP(Registration!#REF!,Registration!A12:F110,8,FALSE)),\"\",VLOOKUP(Registration!#REF!,Registration!A12:F110,8,FALSE))","v":{"$error":"#REF!"}}]
[{"$f":"IF(ISNA(VLOOKUP(Registration!#REF!,'For Office Use Only'!E1:F27,2,FALSE)),\"\",VLOOKUP(Registration!#REF!,'For Office Use Only'!E1:F27,2,FALSE))","v":{"$error":"#REF!"}},{"$f":"IF(ISNA(VLOOKUP(Registration!#REF!,Registration!A12:F110,8,FALSE)),\"\",VLOOKUP(Registration!#REF!,Registration!A12:F110,8,FALSE))","v":{"$error":"#REF!"}}]
[{"$f":"IF(ISNA(VLOOKUP(Registration!#REF!,'For Office Use Only'!E1:F27,2,FALSE)),\"\",VLOOKUP(Registration!#REF!,'For Office Use Only'!E1:F27,2,FALSE))","v":{"$error":"#REF!"}},{"$f":"IF(ISNA(VLOOKUP(Registration!#REF!,Registration!A12:F110,8,FALSE)),\"\",VLOOKUP(Registration!#REF!,Registration!A12:F110,8,FALSE))","v":{"$error":"#REF!"}}]
[{"$f":"IF(ISNA(VLOOKUP(Registration!#REF!,'For Office Use Only'!E1:F27,2,FALSE)),\"\",VLOOKUP(Registration!#REF!,'For Office Use Only'!E1:F27,2,FALSE))","v":{"$error":"#REF!"}},{"$f":"IF(ISNA(VLOOKUP(Registration!#REF!,Registration!A12:F110,8,FALSE)),\"\",VLOOKUP(Registration!#REF!,Registration!A12:F110,8,FALSE))","v":{"$error":"#REF!"}}]
[{"$f":"IF(ISNA(VLOOKUP(Registration!#REF!,'For Office Use Only'!E1:F27,2,FALSE)),\"\",VLOOKUP(Registration!#REF!,'For Office Use Only'!E1:F27,2,FALSE))","v":{"$error":"#REF!"}},{"$f":"IF(ISNA(VLOOKUP(Registration!#REF!,Registration!A12:F110,8,FALSE)),\"\",VLOOKUP(Registration!#REF!,Registration!A12:F110,8,FALSE))","v":{"$error":"#REF!"}}]
[{"$f":"IF(ISNA(VLOOKUP(Registration!#REF!,'For Office Use Only'!E1:F27,2,FALSE)),\"\",VLOOKUP(Registration!#REF!,'For Office Use Only'!E1:F27,2,FALSE))","v":{"$error":"#REF!"}},{"$f":"IF(ISNA(VLOOKUP(Registration!#REF!,Registration!A12:F110,8,FALSE)),\"\",VLOOKUP(Registration!#REF!,Registration!A12:F110,8,FALSE))","v":{"$error":"#REF!"}}]
[{"$f":"IF(ISNA(VLOOKUP(Registration!#REF!,'For Office Use Only'!E1:F27,2,FALSE)),\"\",VLOOKUP(Registration!#REF!,'For Office Use Only'!E1:F27,2,FALSE))","v":{"$error":"#REF!"}},{"$f":"IF(ISNA(VLOOKUP(Registration!#REF!,Registration!A12:F110,8,FALSE)),\"\",VLOOKUP(Registration!#REF!,Registration!A12:F110,8,FALSE))","v":{"$error":"#REF!"}}]
[{"$f":"IF(ISNA(VLOOKUP(Registration!#REF!,'For Office Use Only'!E1:F27,2,FALSE)),\"\",VLOOKUP(Registration!#REF!,'For Office Use Only'!E1:F27,2,FALSE))","v":{"$error":"#REF!"}},{"$f":"IF(ISNA(VLOOKUP(Registration!#REF!,Registration!A12:F110,8,FALSE)),\"\",VLOOKUP(Registration!#REF!,Registration!A12:F110,8,FALSE))","v":{"$error":"#REF!"}}]
[{"$f":"IF(ISNA(VLOOKUP(Registration!#REF!,'For Office Use Only'!E1:F27,2,FALSE)),\"\",VLOOKUP(Registration!#REF!,'For Office Use Only'!E1:F27,2,FALSE))","v":{"$error":"#REF!"}},{"$f":"IF(ISNA(VLOOKUP(Registration!#REF!,Registration!A12:F110,8,FALSE)),\"\",VLOOKUP(Registration!#REF!,Registration!A12:F110,8,FALSE))","v":{"$error":"#REF!"}}]